{"text_format":"1","workbook":"xlsx","n_sheets":3,"sheets":["Form","Registers","Sheet2"],"not_rendered":{"charts":0,"images":5,"macros":1,"external_links":0,"defined_names":9,"comments":0,"pivot_tables":0},"unopened":[],"bounds":{"document_bytes":16777216,"sheet_cells":100000,"rows_first":2000,"rows_last":500,"rows_between":2000,"halvings":0,"cell_chars":16384,"cell_head_chars":4096},"cells_cut":0,"cells_raw":0,"read":"whole","date_system":"1900"}

{"sheet":"Form","index":0,"n_rows":219,"n_cols":150,"rows_kept":219,"cut":false,"hidden":false,"merged":[[74,1,74,14],[74,15,74,24],[74,25,74,30],[74,31,74,35],[74,36,74,40],[74,41,74,49],[85,1,85,14],[85,15,85,24],[85,25,85,30],[85,31,85,35],[85,36,85,40],[85,41,85,49],[79,15,79,24],[79,25,79,30],[79,31,79,35],[79,36,79,40],[79,41,79,49],[80,15,80,24],[80,25,80,30],[80,31,80,35],[81,36,81,40],[81,41,81,49],[35,24,35,32],[35,15,35,23],[40,33,40,40],[40,41,40,49],[199,7,199,49],[110,31,110,35],[110,36,110,40],[110,41,110,49],[111,2,111,14],[111,15,111,24],[111,25,111,30],[142,1,142,49],[183,9,183,10],[183,18,183,21],[183,28,183,29],[168,1,168,4],[169,1,169,4],[170,1,170,4],[171,1,171,4],[172,1,172,4],[173,1,173,4],[174,1,174,4],[175,1,175,4],[42,25,42,32],[42,33,42,40],[102,31,102,35],[102,36,102,40],[102,41,102,49],[103,41,103,49],[103,2,103,40],[209,2,212,49],[197,2,197,49],[198,7,198,49],[60,1,60,14],[60,15,60,24],[60,25,60,30],[60,31,60,35],[60,36,60,40],[60,41,60,49],[93,15,93,24],[93,25,93,30],[93,31,93,35],[93,36,93,40],[93,41,93,49],[94,15,94,24],[94,25,94,30],[176,1,176,4],[94,31,94,35],[94,36,94,40],[180,9,180,10],[185,50,188,50],[218,2,218,12],[218,13,218,49],[195,2,195,49],[213,2,213,49],[201,7,201,49],[200,7,200,49],[203,2,203,49],[205,2,205,49],[207,2,207,49],[215,2,216,12],[215,13,215,26],[216,13,216,26],[215,27,216,49],[217,2,217,12],[217,13,217,49],[95,36,95,40],[177,1,177,4],[178,1,178,4],[179,1,179,4],[180,1,180,4],[101,36,101,40],[111,31,111,35],[111,36,111,40],[111,41,111,49],[106,31,106,35],[106,36,106,40],[106,41,106,49],[107,36,107,40],[98,15,98,24],[98,25,98,30],[98,31,98,35],[98,36,98,40],[98,41,98,49],[113,2,113,14],[129,39,129,49],[117,15,117,24],[117,25,117,32],[117,33,117,40],[117,41,117,49],[107,2,107,14],[107,15,107,24],[107,25,107,30],[107,31,107,35],[123,2,123,14],[123,15,123,26],[123,28,123,38],[115,1,116,14],[114,2,114,49],[107,41,107,49],[113,15,113,24],[113,25,113,30],[113,31,113,35],[113,36,113,40],[113,41,113,49],[115,15,115,49],[116,41,116,49],[116,15,116,24],[92,1,92,14],[93,1,93,14],[94,1,94,14],[95,1,95,14],[96,1,96,14],[101,15,101,24],[101,25,101,30],[101,41,101,49],[99,15,99,24],[99,25,99,30],[99,31,99,35],[99,36,99,40],[99,41,99,49],[100,15,100,24],[100,25,100,30],[100,31,100,35],[96,31,96,35],[96,36,96,40],[96,41,96,49],[94,41,94,49],[95,41,95,49],[96,15,96,24],[96,25,96,30],[101,31,101,35],[106,1,106,14],[106,15,106,24],[106,25,106,30],[100,36,100,40],[100,41,100,49],[99,1,99,14],[100,1,100,14],[101,1,101,14],[90,2,90,49],[105,2,105,49],[97,1,97,14],[92,15,92,24],[92,25,92,30],[92,31,92,35],[92,36,92,40],[92,41,92,49],[97,15,97,24],[97,25,97,30],[97,31,97,35],[97,36,97,40],[97,41,97,49],[95,15,95,24],[95,25,95,30],[95,31,95,35],[91,2,91,14],[91,15,91,24],[91,25,91,30],[91,31,91,35],[91,36,91,40],[91,41,91,49],[82,15,82,24],[82,25,82,30],[82,31,82,35],[82,36,82,40],[82,41,82,49],[83,31,83,35],[83,36,83,40],[83,41,83,49],[87,1,87,14],[87,15,87,24],[87,25,87,30],[87,31,87,35],[86,1,86,14],[86,15,86,24],[86,25,86,30],[86,31,86,35],[86,36,86,40],[86,41,86,49],[87,36,87,40],[87,41,87,49],[75,41,75,49],[72,1,72,14],[73,1,73,14],[83,1,83,14],[79,1,79,14],[81,1,81,14],[82,1,82,14],[77,2,77,49],[78,2,78,49],[72,15,72,24],[72,25,72,30],[72,31,72,35],[72,36,72,40],[72,41,72,49],[73,15,73,24],[73,25,73,30],[73,31,73,35],[73,36,73,40],[73,41,73,49],[81,15,81,24],[81,25,81,30],[81,31,81,35],[28,31,28,40],[24,2,24,14],[26,2,26,14],[27,2,27,14],[27,41,27,49],[25,15,25,30],[25,31,25,40],[25,41,25,49],[26,15,26,30],[26,31,26,40],[26,41,26,49],[27,15,27,24],[27,25,27,30],[27,31,27,35],[27,36,27,40],[24,41,24,49],[28,41,28,43],[28,44,28,46],[28,47,28,49],[22,15,22,17],[22,18,22,24],[22,25,22,30],[25,2,25,14],[22,31,22,40],[22,41,22,44],[22,45,22,49],[23,15,23,30],[23,31,23,40],[23,41,23,49],[11,1,11,49],[12,2,12,14],[12,41,17,49],[18,41,18,49],[15,2,15,14],[16,2,16,14],[17,2,17,14],[18,2,18,14],[13,2,13,14],[14,2,14,14],[14,15,14,40],[15,15,15,40],[16,15,16,40],[17,15,17,40],[18,34,18,40],[13,15,13,25],[13,26,13,30],[12,15,12,25],[12,26,12,30],[12,31,12,40],[13,31,13,40],[18,31,18,33],[18,15,18,30],[3,0,4,7],[1,43,1,51],[5,43,6,51],[3,43,4,51],[8,0,8,51],[4,8,4,42],[5,8,5,42],[1,0,1,42],[5,0,6,7],[19,15,19,24],[19,25,19,33],[19,34,19,40],[20,25,20,30],[20,31,20,40],[21,15,21,24],[19,43,19,49],[19,2,20,14],[19,41,19,42],[21,2,21,14],[21,25,21,33],[21,34,21,40],[21,41,21,42],[21,43,21,49],[35,33,35,40],[75,1,75,14],[80,1,80,14],[53,1,53,14],[53,15,53,24],[53,25,53,30],[53,31,53,35],[20,41,20,44],[20,45,20,49],[20,15,20,17],[20,18,20,24],[30,1,30,49],[31,1,31,14],[31,15,31,23],[31,24,31,32],[31,33,31,40],[41,15,41,49],[42,15,42,24],[31,41,31,49],[28,2,28,14],[23,2,23,14],[22,2,22,14],[24,15,24,30],[24,31,24,40],[32,15,32,23],[32,24,32,32],[32,33,32,40],[32,41,32,49],[36,2,36,10],[37,15,37,23],[36,15,36,23],[36,24,36,32],[36,33,36,40],[36,41,36,49],[32,2,32,14],[33,2,33,14],[34,2,34,14],[35,2,35,14],[33,15,33,23],[33,24,33,32],[33,33,33,40],[33,41,33,49],[34,15,34,23],[37,24,37,32],[37,33,37,40],[34,24,34,32],[34,33,34,40],[34,41,34,49],[43,41,43,43],[44,41,44,43],[43,44,43,49],[44,44,44,49],[108,2,108,14],[108,15,108,24],[108,25,108,30],[108,31,108,35],[108,36,108,40],[108,41,108,49],[57,31,57,35],[57,36,57,40],[57,41,57,49],[58,1,58,14],[58,15,58,24],[67,31,67,35],[67,36,67,40],[71,15,71,24],[71,25,71,30],[71,31,71,35],[71,36,71,40],[71,41,71,49],[80,36,80,40],[80,41,80,49],[54,15,54,24],[54,25,54,30],[50,41,50,49],[55,1,55,14],[55,15,55,24],[55,25,55,30],[53,36,53,40],[53,41,53,49],[54,1,54,14],[54,36,54,40],[51,15,51,24],[51,25,51,30],[51,31,51,35],[51,36,51,40],[51,41,51,49],[52,1,52,14],[52,15,52,24],[52,25,52,30],[52,31,52,35],[54,41,54,49],[48,1,48,49],[49,1,49,14],[49,15,49,24],[49,25,49,30],[49,31,49,35],[49,36,49,40],[49,41,49,49],[50,1,50,14],[50,15,50,24],[50,25,50,30],[50,31,50,35],[50,36,50,40],[129,15,129,26],[128,28,128,38],[129,28,129,38],[128,39,128,49],[109,2,109,14],[109,15,109,24],[109,25,109,30],[109,31,109,35],[109,36,109,40],[109,41,109,49],[110,2,110,14],[110,15,110,24],[110,25,110,30],[116,25,116,32],[116,33,116,40],[112,31,112,35],[112,36,112,40],[112,41,112,49],[123,39,123,49],[128,2,128,14],[129,2,129,14],[128,15,128,26],[126,2,126,14],[127,2,127,14],[55,31,55,35],[69,36,69,40],[69,41,69,49],[68,1,68,14],[69,1,69,14],[65,1,65,14],[66,1,66,14],[84,1,84,14],[75,15,75,24],[75,25,75,30],[75,31,75,35],[68,25,68,30],[68,31,68,35],[68,36,68,40],[68,41,68,49],[66,15,66,24],[66,25,66,30],[66,31,66,35],[66,36,66,40],[66,41,66,49],[64,1,64,14],[64,15,64,24],[64,25,64,30],[64,31,64,35],[118,15,118,24],[118,25,118,32],[118,33,118,40],[118,41,118,49],[124,2,124,14],[125,2,125,14],[124,15,124,26],[125,15,125,26],[124,28,124,38],[125,28,125,38],[124,39,124,49],[125,39,125,49],[118,1,118,14],[119,1,119,14],[120,1,120,14],[121,1,121,14],[122,1,122,49],[112,25,112,30],[98,1,98,14],[59,1,59,14],[59,15,59,24],[59,25,59,30],[67,41,67,49],[59,31,59,35],[59,36,59,40],[84,15,84,24],[84,25,84,30],[84,31,84,35],[84,36,84,40],[84,41,84,49],[70,1,70,14],[71,1,71,14],[70,15,70,24],[70,25,70,30],[70,31,70,35],[70,36,70,40],[70,41,70,49],[83,15,83,24],[69,15,69,24],[64,36,64,40],[64,41,64,49],[140,2,140,45],[135,46,135,49],[140,46,140,49],[130,39,130,49],[131,39,131,49],[144,2,144,45],[143,46,144,49],[143,1,144,1],[130,2,130,14],[131,28,131,38],[133,1,133,49],[134,2,134,45],[134,46,134,49],[136,46,136,49],[137,46,137,49],[138,46,138,49],[139,46,139,49],[135,2,135,45],[136,2,136,45],[137,2,137,45],[138,2,138,45],[139,2,139,45],[131,2,131,14],[130,15,130,26],[56,15,56,24],[56,25,56,30],[121,25,121,32],[121,33,121,40],[121,41,121,49],[112,2,112,14],[102,1,102,24],[102,25,102,30],[67,1,67,14],[119,33,119,40],[119,41,119,49],[120,15,120,24],[120,25,120,32],[69,31,69,35],[83,25,83,30],[75,36,75,40],[57,1,57,14],[57,15,57,24],[62,2,62,49],[63,2,63,49],[65,15,65,24],[68,15,68,24],[69,25,69,30],[112,15,112,24],[149,28,149,49],[146,1,146,21],[147,1,147,21],[149,1,149,21],[131,15,131,26],[130,28,130,38],[39,1,39,49],[41,2,41,14],[65,25,65,30],[65,31,65,35],[65,36,65,40],[65,41,65,49],[120,41,120,49],[121,15,121,24],[127,28,127,38],[126,39,126,49],[127,39,127,49],[126,15,126,26],[127,15,127,26],[126,28,126,38],[120,33,120,40],[67,15,67,24],[67,25,67,30],[45,1,45,49],[152,1,152,49],[153,2,153,17],[119,15,119,24],[119,25,119,32],[54,31,54,35],[117,1,117,14],[153,18,153,49],[154,2,154,17],[155,2,155,17],[154,18,154,49],[155,18,155,49],[145,2,145,21],[145,22,145,27],[145,28,145,49],[141,1,141,49],[143,2,143,45],[147,22,147,27],[147,28,147,49],[148,2,148,21],[148,22,148,27],[148,28,148,49],[146,22,146,27],[146,28,146,49],[149,22,149,27],[160,31,160,36],[160,37,160,49],[156,2,156,17],[157,2,157,17],[158,2,158,17],[159,2,159,17],[160,2,160,17],[157,18,157,49],[158,18,158,49],[159,18,159,49],[156,18,156,30],[156,31,156,36],[156,37,156,49],[160,18,160,30],[40,7,40,17],[40,18,40,24],[40,25,40,32],[58,25,58,30],[58,31,58,35],[59,41,59,49],[35,41,35,49],[37,41,37,49],[37,2,37,14],[52,36,52,40],[52,41,52,49],[58,36,58,40],[58,41,58,49],[51,1,51,14],[44,25,44,30],[57,25,57,30],[56,31,56,35],[56,36,56,40],[46,1,46,49],[55,36,55,40],[47,1,47,49],[44,15,44,24],[55,41,55,49],[56,1,56,14],[168,18,168,21],[168,28,168,29],[169,9,169,10],[169,18,169,21],[169,28,169,29],[167,9,167,10],[167,28,167,29],[28,15,28,24],[28,25,28,27],[28,28,28,30],[163,1,164,49],[167,5,167,8],[167,2,167,4],[42,41,42,42],[42,43,42,49],[43,15,43,17],[43,18,43,24],[43,25,43,30],[43,31,43,40],[56,41,56,49],[44,2,44,14],[44,31,44,40],[42,2,43,14],[40,2,40,6],[172,18,172,21],[172,28,172,29],[173,9,173,10],[173,18,173,21],[173,28,173,29],[170,9,170,10],[170,18,170,21],[170,28,170,29],[171,9,171,10],[171,18,171,21],[171,28,171,29],[176,18,176,21],[176,28,176,29],[177,9,177,10],[177,18,177,21],[177,28,177,29],[174,9,174,10],[174,18,174,21],[174,28,174,29],[175,9,175,10],[175,18,175,21],[177,22,177,24],[177,25,177,27],[181,18,181,21],[181,13,181,17],[181,28,181,29],[178,9,178,10],[178,18,178,21],[178,28,178,29],[179,9,179,10],[179,18,179,21],[179,28,179,29],[178,22,178,24],[179,22,179,24],[180,22,180,24],[181,22,181,24],[178,25,178,27],[179,25,179,27],[180,25,180,27],[181,25,181,27],[181,11,181,12],[185,18,185,21],[185,28,185,29],[184,9,184,10],[182,28,182,29],[182,9,182,10],[182,18,182,21],[186,9,186,10],[182,13,182,17],[183,13,183,17],[184,13,184,17],[185,13,185,17],[186,13,186,17],[182,22,182,24],[183,22,183,24],[184,22,184,24],[185,22,185,24],[186,22,186,24],[182,25,182,27],[183,25,183,27],[184,25,184,27],[185,25,185,27],[182,11,182,12],[183,11,183,12],[184,11,184,12],[182,1,182,4],[183,1,183,4],[184,1,184,4],[185,1,185,4],[186,1,186,4],[187,2,187,4],[184,5,184,8],[185,5,185,8],[186,5,186,8],[186,11,186,12],[187,11,187,12],[168,5,168,8],[169,5,169,8],[170,5,170,8],[171,5,171,8],[172,5,172,8],[173,5,173,8],[174,5,174,8],[175,5,175,8],[176,5,176,8],[177,5,177,8],[178,5,178,8],[179,5,179,8],[180,5,180,8],[181,5,181,8],[182,5,182,8],[183,5,183,8],[187,9,187,10],[185,9,185,10],[181,9,181,10],[176,9,176,10],[172,9,172,10],[168,9,168,10],[188,2,188,49],[189,2,189,49],[192,2,192,49],[193,2,193,49],[165,2,166,8],[165,9,166,12],[187,13,187,49],[187,5,187,8],[167,11,167,12],[168,11,168,12],[169,11,169,12],[170,11,170,12],[171,11,171,12],[172,11,172,12],[173,11,173,12],[174,11,174,12],[175,11,175,12],[176,11,176,12],[177,11,177,12],[178,11,178,12],[179,11,179,12],[180,11,180,12],[181,1,181,4],[185,11,185,12],[168,13,168,17],[169,13,169,17],[170,13,170,17],[171,13,171,17],[172,13,172,17],[177,55,177,56],[184,32,184,33],[185,32,185,33],[186,32,186,33],[177,30,177,31],[178,30,178,31],[173,13,173,17],[174,13,174,17],[175,13,175,17],[176,13,176,17],[177,13,177,17],[178,13,178,17],[179,13,179,17],[184,18,184,21],[186,18,186,21],[186,28,186,29],[180,18,180,21],[180,28,180,29],[180,13,180,17],[168,32,168,33],[169,32,169,33],[170,32,170,33],[171,32,171,33],[172,32,172,33],[173,32,173,33],[174,32,174,33],[167,30,167,31],[168,30,168,31],[169,30,169,31],[170,30,170,31],[171,30,171,31],[172,30,172,31],[173,30,173,31],[174,30,174,31],[167,22,167,24],[167,25,167,27],[165,13,167,17],[165,18,167,21],[165,42,167,49],[165,36,166,41],[167,40,167,41],[167,36,167,39],[167,34,167,35],[165,22,166,35],[167,32,167,33],[168,22,168,24],[169,22,169,24],[170,22,170,24],[171,22,171,24],[172,22,172,24],[173,22,173,24],[174,22,174,24],[175,22,175,24],[176,22,176,24],[168,25,168,27],[169,25,169,27],[170,25,170,27],[171,25,171,27],[172,25,172,27],[173,25,173,27],[174,25,174,27],[175,25,175,27],[176,25,176,27],[186,25,186,27],[177,34,177,35],[178,34,178,35],[179,34,179,35],[180,34,180,35],[181,34,181,35],[182,34,182,35],[183,34,183,35],[175,28,175,29],[175,30,175,31],[176,30,176,31],[175,32,175,33],[176,32,176,33],[177,32,177,33],[178,32,178,33],[179,32,179,33],[180,32,180,33],[181,32,181,33],[182,32,182,33],[184,28,184,29],[168,34,168,35],[169,34,169,35],[170,34,170,35],[171,34,171,35],[172,34,172,35],[173,34,173,35],[174,34,174,35],[175,34,175,35],[176,34,176,35],[182,36,182,39],[183,36,183,39],[184,36,184,39],[185,36,185,39],[186,36,186,39],[179,30,179,31],[180,30,180,31],[181,30,181,31],[182,30,182,31],[183,30,183,31],[184,30,184,31],[185,30,185,31],[186,30,186,31],[183,32,183,33],[184,34,184,35],[185,34,185,35],[186,34,186,35],[173,36,173,39],[174,36,174,39],[175,36,175,39],[176,36,176,39],[177,36,177,39],[178,36,178,39],[179,36,179,39],[180,36,180,39],[181,36,181,39],[169,36,169,39],[190,2,191,49],[168,40,168,41],[169,40,169,41],[170,40,170,41],[171,40,171,41],[172,40,172,41],[173,40,173,41],[174,40,174,41],[175,40,175,41],[176,40,176,41],[186,40,186,41],[177,40,177,41],[178,40,178,41],[179,40,179,41],[180,40,180,41],[181,40,181,41],[182,40,182,41],[183,40,183,41],[184,40,184,41],[185,40,185,41],[170,36,170,39],[171,36,171,39],[172,36,172,39]]}
[]
[null,null,null,null,null,null,null,null,null,null,null,null,null,null,null,null,null,null,null,null,null,null,null,null,null,null,null,null,null,null,null,null,null,null,null,null,null,null,null,null,null,null,null,null,null,null,null,null,null,null,null,null,null,null,null,null,null,null,null,null,null,null,null,null,null,null,null,null,null,null,null,null,null,null,null,null,null,null,null,null,null,null,null,null,null,null,null,null,null,null,null,null,null,null,null,null,null,null,null,null,null,null,null,null,null,null,null,null,null,null,null,null,null,null,null,null,null,null,null,null,null,null,null,null,null,null,null,null,null,null,null,null,null,null,null,null,null,null,null,null,null,null,null,null,null,null,null,null,null,"FORMAT-ZL"]
[]
[null,null,null,null,null,null,null,null,null,null,null,null,null,null,null,null,null,null,null,null,null,null,null,null,null,null,null,"MARITIME UNIVERSAL LLC"]
[null,null,null,null,null,null,null,null,"Sharjah Media City, UAE - Website: www.maritime-universal.com "]
[null,null,null,null,null,null,null,null,"Tel. No. +971507179371"]
[]
[]
["CV"]
[]
[]
[null,"SECTION 1- SEAFARER PERSONAL DETAILS AND POSITION APPLIED FOR"]
[null,"    ","Employee number:",null,null,null,null,null,null,null,null,null,null,null,null,null,null,null,null,null,null,null,null,null,null,null,"Agency name:",null,null,null,null,null,null,null,null,null,null,null,null,null,null,"Photo here                         (white background                 Max Size: 200KB)            required",null,null,null,null,null,null,null,null,null,null,1]
[null,null,"Position applied for:",null,null,null,null,null,null,null,null,null,null,null,null,null,null,null,null,null,null,null,null,null,null,null,"Date of availability (dd/mm/yyyy):"]
[null,null,"Family name:"]
[null,null,"First name(s):"]
[null,null,"Date of birth (dd/mm/yyyy):"]
[null,null,"Place of birth:"]
[null,null,"Nationality:",null,null,null,null,null,null,null,null,null,null,null,null,null,null,null,null,null,null,null,null,null,null,null,null,null,null,null,null,"Religion:"]
[null,null,"Full permanent address:",null,null,null,null,null,null,null,null,null,null,null,null,null,null,null,null,null,null,null,null,null,null,null,null,null,null,null,null,null,null,null,null,null,null,null,null,null,null," City:"]
[null,null,null,null,null,null,null,null,null,null,null,null,null,null,null,"State:",null,null,null,null,null,null,null,null,null,"  Country:",null,null,null,null,null,null,null,null,null,null,null,null,null,null,null,"Zip code:"]
[null,null,"Full present address ",null,null,null,null,null,null,null,null,null,null,null,null,null,null,null,null,null,null,null,null,null,null,null,null,null,null,null,null,null,null,null,null,null,null,null,null,null,null," City:"]
[null,null,"(if different):",null,null,null,null,null,null,null,null,null,null,null,null,"State:",null,null,null,null,null,null,null,null,null,"  Country:",null,null,null,null,null,null,null,null,null,null,null,null,null,null,null,"Zip code:"]
[null,null,"Father's Name",null,null,null,null,null,null,null,null,null,null,null,null,null,null,null,null,null,null,null,null,null,null,null,null,null,null,null,null,"  Mother's Name:"]
[null,null,"Nearest airport:",null,null,null,null,null,null,null,null,null,null,null,null,null,null,null,null,null,null,null,null,null,null,null,null,null,null,null,null,"  Airport distance from address   (km):",null,null,null,null,null,null,null,null,null,null,null,null,null,null,null,null,null,null,"AIRPORTD"]
[null,null,"Email address:",null,null,null,null,null,null,null,null,null,null,null,null,null,null,null,null,null,null,null,null,null,null,null,null,null,null,null,null,"  Contact number:"]
[null,null,"Skype address:",null,null,null,null,null,null,null,null,null,null,null,null,null,null,null,null,null,null,null,null,null,null,null,null,null,null,null,null,"  Mobile phone number:"]
[null,null,"Blood group:",null,null,null,null,null,null,null,null,null,null,null,null,null,null,null,null,null,null,null,null,null,null," Height (cms):",null,null,null,null,null,null,null,null,null,null,"  Weight (kg):"]
[null,null,"PPE Safety shoe size:",null,null,null,null,null,null,null,null,null,null,null,null,null,null,null,null,null,null,null,null,null,null,"Unit",null,null,null,null,null,"  PPE coverall size:",null,null,null,null,null,null,null,null,null,null,null,null,"Unit"]
[]
[null,"SECTION 2-SEAFARER PASSPORT, SEAMAN BOOK AND VISA DETAILS"]
[null,"Document details",null,null,null,null,null,null,null,null,null,null,null,null,null,"Document number",null,null,null,null,null,null,null,null,"Country of issue",null,null,null,null,null,null,null,null,"Date of issue (dd/mm/yyyy)",null,null,null,null,null,null,null,"Date of expiry (dd/mm/yyyy)"]
[null,null,"Primary Passport:",null,null,null,null,null,null,null,null,null,null,null,null,null,null,null,null,null,null,null,null,null,null,null,null,null,null,null,null,null,null,null,null,null,null,null,null,null,null,null,null,null,null,null,null,null,null,null,"Passport",null,2]
[null,null,"Second Passport (if applicable):",null,null,null,null,null,null,null,null,null,null,null,null,null,null,null,null,null,null,null,null,null,null,null,null,null,null,null,null,null,null,null,null,null,null,null,null,null,null,null,null,null,null,null,null,null,null,null,"Second Passport"]
[null,null,"Seaman book:",null,null,null,null,null,null,null,null,null,null,null,null,null,null,null,null,null,null,null,null,null,null,null,null,null,null,null,null,null,null,null,null,null,null,null,null,null,null,null,null,null,null,null,null,null,null,null,"SEAMAN BOOK"]
[null,null,"Flag Seaman book (if any):",null,null,null,null,null,null,null,null,null,null,null,null,null,null,null,null,null,null,null,null,null,null,null,null,null,null,null,null,null,null,null,null,null,null,null,null,null,null,null,null,null,null,null,null,null,null,null,"Flag Seaman book"]
[null,null,"KSA Visa Type (if held):",null,null,null,null,null,null,null,null,null,null,null,null,null,null,null,null,null,null,null,null,null,null,null,null,null,null,null,null,null,null,null,null,null,null,null,null,null,null,null,null,null,null,null,null,null,null,null,"KSA"]
[null,null,"Additional Visa (country):",null,null,null,null,null,null,null,null,null,null,null,null,null,null,null,null,null,null,null,null,null,null,null,null,null,null,null,null,null,null,null,null,null,null,null,null,null,null,null,null,null,null,null,null,null,null,null,"Additional Visa"]
[]
[null,"SECTION 3- NEXT OF KIN"]
[null,null,"Family name:",null,null,null,null,null,null,null,null,null,null,null,null,null,null,null,"First name",null,null,null,null,null,null,null,null,null,null,null,null,null,null,"Relationship to Seafarer:",null,null,null,null,null,null,null,null,null,null,null,null,null,null,null,null,null,null,3]
[null,null,"Relationship to Seafarer:"]
[null,null,"Full address:",null,null,null,null,null,null,null,null,null,null,null,null,null,null,null,null,null,null,null,null,null,null,null,null,null,null,null,null,null,null,null,null,null,null,null,null,null,null,"City:"]
[null,null,null,null,null,null,null,null,null,null,null,null,null,null,null,"State:",null,null,null,null,null,null,null,null,null,"  Country:",null,null,null,null,null,null,null,null,null,null,null,null,null,null,null,"Zip code:"]
[null,null,"Email address:",null,null,null,null,null,null,null,null,null,null,null,null,null,null,null,null,null,null,null,null,null,null,"  Mobile phone number:",null,null,null,null,null,null,null,null,null,null,null,null,null,null,null,"Contact number:"]
[]
[null,"SECTION 4- HIGHEST CERTIFICATE OF COMPETENCY/LICENCE/CRANE OPERATORS",null,null,null,null,null,null,null,null,null,null,null,null,null,null,null,null,null,null,null,null,null,null,null,null,null,null,null,null,null,null,null,null,null,null,null,null,null,null,null,null,null,null,null,null,null,null,null,null,null,null,4]
[null,"CERTIFICATES/OTHER EQUIVALENT CERTIFICATES AND FLAG STATE ENDORSEMENTS"]
[null,"(STCW2010 / STCW78 AS AMENDED)"]
[null,"Class / Grade / Capacity",null,null,null,null,null,null,null,null,null,null,null,null,null,"Issuing country",null,null,null,null,null,null,null,null,null,"Certificate number",null,null,null,null,null,"Date of issue (dd/mm/yyyy)",null,null,null,null,"Date of expiry (dd/mm/yyyy)",null,null,null,null,"Place of issue"]
[]
[]
[]
[]
[]
[]
[]
[]
[]
[]
[]
[null,null,null,null,null,null,null,null,null,null,null,null,null,null,null,null,null,null,null,null,null,null,null,null,null,null,null,null,null,null,null,null,null,null,null,null,null,null,null,null,null,null,null,null,null,null,null,null,null,null,null,null,5]
[null,null,"SECTION 5A- STCW2010 (STCW78 AS AMENDED)"]
[null,null,"CERTIFICATION AND RELATED COURSES"]
[null,"Name of Course / Certificate",null,null,null,null,null,null,null,null,null,null,null,null,null,"Issuing country",null,null,null,null,null,null,null,null,null,"Certificate number",null,null,null,null,null,"Date of issue (dd/mm/yyyy)",null,null,null,null,"Date of expiry (dd/mm/yyyy)",null,null,null,null,"Place of issue"]
[]
[]
[]
[]
[]
[]
[]
[]
[]
[]
[]
[null,null,null,null,null,null,null,null,null,null,null,null,null,null,null,null,null,null,null,null,null,null,null,null,null,null,null,null,null,null,null,null,null,null,null,null,null,null,null,null,null,null,null,null,null,null,null,null,null,null,null,null,6]
[null,null,"SECTION 5B- STCW2010 (STCW78 AS AMENDED)"]
[null,null,"MEDICAL CERTIFICATES"]
[null,"Name of Course / Certificate",null,null,null,null,null,null,null,null,null,null,null,null,null,"Issuing country",null,null,null,null,null,null,null,null,null,"Certificate number",null,null,null,null,null,"Date of issue (dd/mm/yyyy)",null,null,null,null,"Date of expiry (dd/mm/yyyy)",null,null,null,null,"Place of issue"]
[]
[]
[]
[]
[]
[]
[]
[]
[]
[null,null,null,null,null,null,null,null,null,null,null,null,null,null,null,null,null,null,null,null,null,null,null,null,null,null,null,null,null,null,null,null,null,null,null,null,null,null,null,null,null,null,null,null,null,null,null,null,null,null,null,null,7]
[null,null,"SECTION 6- OTHER CERTIFICATION / COURSES YOU MAY HAVE"]
[null,null,"Name of Course / Certificate",null,null,null,null,null,null,null,null,null,null,null,null,"Approvals",null,null,null,null,null,null,null,null,null,"Certificate number",null,null,null,null,null,"Date of issue (dd/mm/yyyy)",null,null,null,null,"Date of expiry (dd/mm/yyyy)",null,null,null,null,"Place of issue"]
[]
[]
[]
[]
[]
[]
[]
[]
[]
[]
[null,"  Marlin’s English Test",null,null,null,null,null,null,null,null,null,null,null,null,null,null,null,null,null,null,null,null,null,null,null,"Score (Percentage %):",null,null,null,null,null,null,null,null,null,null,"Passed date (dd/mm/yyyy):",null,null,null,null,null,null,null,null,null,null,null,null,null,null,null,8]
[null,null,"PMS maintenance system- are you familiar with its use(Yes / No):",null,null,null,null,null,null,null,null,null,null,null,null,null,null,null,null,null,null,null,null,null,null,null,null,null,null,null,null,null,null,null,null,null,null,null,null,null,null,null,null,null,null,null,null,null,null,null,"PMSSYS"]
[]
[null,null,"SECTION 7- DYNAMIC POSITIONING (DP) CERTIFICATION"]
[null,"Name of Course / Certificate",null,null,null,null,null,null,null,null,null,null,null,null,null,"Approvals",null,null,null,null,null,null,null,null,null,"Certificate number",null,null,null,null,null,"Date of issue (dd/mm/yyyy)",null,null,null,null,"Date of expiry (dd/mm/yyyy)",null,null,null,null,"Place of issue"]
[null,null,"DP maintenance course"]
[null,null,"High voltage course"]
[null,null,"DP induction course"]
[null,null,"DP simulator course"]
[null,null,"DPO certificate (details of old certificate- before renewal)"]
[null,null,"DPO certificate (details of new certificate- after renewal)"]
[null,null,"DP log book details"]
[null,null,"NUMBER OF HOURS DONE WITH VARIOUS DYNAMIC POSITIONING SYSTEMS",null,null,null,null,null,null,null,null,null,null,null,null,null,null,null,null,null,null,null,null,null,null,null,null,null,null,null,null,null,null,null,null,null,null,null,null,null,null,null,null,null,null,null,null,null,null,null,null,null,9]
[null,"System details"]
[null,null,null,null,null,null,null,null,null,null,null,null,null,null,null,"SDPO",null,null,null,null,null,null,null,null,null,"DPO",null,null,null,null,null,null,null,"Senior ETO / Senior Engineer",null,null,null,null,null,null,null,"Junior ETO / Junior Engineer"]
[]
[]
[]
[]
[]
[null,"APPROXIMATE TOTAL DP HOURS ON VARIOUS VESSELS / OPERATIONS",null,null,null,null,null,null,null,null,null,null,null,null,null,null,null,null,null,null,null,null,null,null,null,null,null,null,null,null,null,null,null,null,null,null,null,null,null,null,null,null,null,null,null,null,null,null,null,null,null,null,10]
[null,null,"Sat diving",null,null,null,null,null,null,null,null,null,null,null,null,null,null,null,null,null,null,null,null,null,null,null,null,null,"Cable laying"]
[null,null,"Air diving",null,null,null,null,null,null,null,null,null,null,null,null,null,null,null,null,null,null,null,null,null,null,null,null,null,"Survey"]
[null,null,"ROV",null,null,null,null,null,null,null,null,null,null,null,null,null,null,null,null,null,null,null,null,null,null,null,null,null,"Pipe laying"]
[null,null,"Well stimulation / intervention / activation",null,null,null,null,null,null,null,null,null,null,null,null,null,null,null,null,null,null,null,null,null,null,null,null,null,"Drill ship / Semi-submersible"]
[null,null,"AHTS",null,null,null,null,null,null,null,null,null,null,null,null,null,null,null,null,null,null,null,null,null,null,null,null,null,"PSV"]
[null,null,"FPSO",null,null,null,null,null,null,null,null,null,null,null,null,null,null,null,null,null,null,null,null,null,null,null,null,null,"Shuttle Tanker"]
[null,null,"Construction",null,null,null,null,null,null,null,null,null,null,null,null,null,null,null,null,null,null,null,null,null,null,null,null,null,"Rock dumping / Mattressing"]
[null,null,"Coring",null,null,null,null,null,null,null,null,null,null,null,null,null,null,null,null,null,null,null,null,null,null,null,null,null,"Trenching"]
[null,null,"Heavy lift",null,null,null,null,null,null,null,null,null,null,null,null,null,null,null,null,null,null,null,null,null,null,null,null,null,"Accommodation / Gangway"]
[null,null,null,null,null,null,null,null,null,null,null,null,null,null,null,null,null,null,null,null,null,null,null,null,null,null,null,null,null,null,null,null,null,null,null,null,null,null,null,null,null,null,null,null,null,null,null,null,null,null,null,null,11]
[null,"SECTION 8-MEDICAL HISTORY"]
[null,null,"Particulars",null,null,null,null,null,null,null,null,null,null,null,null,null,null,null,null,null,null,null,null,null,null,null,null,null,null,null,null,null,null,null,null,null,null,null,null,null,null,null,null,null,null,null,"Yes / No"]
[null,null,"1. Have you ever had to sign off/ repatriated from a ship due a medical reason and been hospitalised?",null,null,null,null,null,null,null,null,null,null,null,null,null,null,null,null,null,null,null,null,null,null,null,null,null,null,null,null,null,null,null,null,null,null,null,null,null,null,null,null,null,null,null,null,null,null,null,"HOSP"]
[null,null,"2. Have you undergone any medical operations in the past?",null,null,null,null,null,null,null,null,null,null,null,null,null,null,null,null,null,null,null,null,null,null,null,null,null,null,null,null,null,null,null,null,null,null,null,null,null,null,null,null,null,null,null,null,null,null,null,"OPERATION"]
[null,null,"3. Have you had to consult a doctor during the past 12 months for an illness / accident?",null,null,null,null,null,null,null,null,null,null,null,null,null,null,null,null,null,null,null,null,null,null,null,null,null,null,null,null,null,null,null,null,null,null,null,null,null,null,null,null,null,null,null,null,null,null,null,"ILLNESS"]
[null,null,"4. Do you have any medical condition that may affect your work?",null,null,null,null,null,null,null,null,null,null,null,null,null,null,null,null,null,null,null,null,null,null,null,null,null,null,null,null,null,null,null,null,null,null,null,null,null,null,null,null,null,null,null,null,null,null,null,"MEDCOND"]
[null,null,"5. Do you feel unfit to perform the duties of your designated position/occupation?",null,null,null,null,null,null,null,null,null,null,null,null,null,null,null,null,null,null,null,null,null,null,null,null,null,null,null,null,null,null,null,null,null,null,null,null,null,null,null,null,null,null,null,null,null,null,null,"HEALTH"]
[null,null,"6. Are you allergic to any medications?",null,null,null,null,null,null,null,null,null,null,null,null,null,null,null,null,null,null,null,null,null,null,null,null,null,null,null,null,null,null,null,null,null,null,null,null,null,null,null,null,null,null,null,null,null,null,null,"ALLERGIC"]
[null,"If you have answered Yes to any of the above then specify below"]
[]
[null,null,"7. Are you taking any prescribed or non-prescribed medications at present?",null,null,null,null,null,null,null,null,null,null,null,null,null,null,null,null,null,null,null,null,null,null,null,null,null,null,null,null,null,null,null,null,null,null,null,null,null,null,null,null,null,null,null,null,null,null,null,"MEDTION"]
[null,null,"If yes, please list these medications, their dosage and their purpose / reason for taking:"]
[null,null,"Prescribed Medications (please name)",null,null,null,null,null,null,null,null,null,null,null,null,null,null,null,null,null,null,null,"Dosage",null,null,null,null,null,"Purpose / reason for taking",null,null,null,null,null,null,null,null,null,null,null,null,null,null,null,null,null,null,null,null,null,"PMEDTION"]
[]
[]
[null,null,"Non-prescribed Medications (please name)",null,null,null,null,null,null,null,null,null,null,null,null,null,null,null,null,null,null,null,"Dosage",null,null,null,null,null,"Purpose / reason for taking",null,null,null,null,null,null,null,null,null,null,null,null,null,null,null,null,null,null,null,null,null,"NPMEDTION"]
[]
[null,null,null,null,null,null,null,null,null,null,null,null,null,null,null,null,null,null,null,null,null,null,null,null,null,null,null,null,null,null,null,null,null,null,null,null,null,null,null,null,null,null,null,null,null,null,null,null,null,null,null,null,12]
[]
[null,"SECTION 9- LAST TWO EMPLOYMENT CONTACT DETAILS"]
[null,null,"Name of company:"]
[null,null,"Name of contact person:"]
[null,null,"Company address:"]
[null,null,"Contact number:",null,null,null,null,null,null,null,null,null,null,null,null,null,null,null,null,null,null,null,null,null,null,null,null,null,null,null,null,"Email address:"]
[null,null,"Name of company:"]
[null,null,"Name of contact person:"]
[null,null,"Company address:"]
[null,null,"Contact number:",null,null,null,null,null,null,null,null,null,null,null,null,null,null,null,null,null,null,null,null,null,null,null,null,null,null,null,null,"Email address:"]
[null,null,null,null,null,null,null,null,null,null,null,null,null,null,null,null,null,null,null,null,null,null,null,null,null,null,null,null,null,null,null,null,null,null,null,null,null,null,null,null,null,null,null,null,null,null,null,null,null,null,null,null,13]
[]
[null,"SECTION 10- SEA SERVICE"]
[]
[null,null,"(Day/Month/Year)\n(dd/mm/yy)",null,null,null,null,null,null,"Duration of Sea Service",null,null,null,"Position",null,null,null,null,"Vessel Name",null,null,null,"Vessels ",null,null,null,null,null,null,null,null,null,null,null,null,null,"Main Engine *",null,null,null,null,null,"** Ship Owner/ Ship Management - Tel #; Contact Person & Email ID"]
[]
[null,null,"From",null,null,"To",null,null,null,"Mos.",null,"Days",null,null,null,null,null,null,null,null,null,null,"Type / IMO #",null,null,"Flag",null,null,"Oilfield  Y/N",null,"DP1",null,"DP2",null,"GRT",null,"Type/Model",null,null,null,"KW"]
[null,null,null,null,null,null,null,null,null,{"$f":"SUM(L169/30)","v":0},null,0]
[null,null,null,null,null,null,null,null,null,{"$f":"SUM(L170/30)","v":0},null,0]
[null,null,null,null,null,null,null,null,null,0,null,0]
[null,null,null,null,null,null,null,null,null,0,null,0]
[null,null,null,null,null,null,null,null,null,0,null,0]
[null,null,null,null,null,null,null,null,null,0,null,0]
[null,null,null,null,null,null,null,null,null,0,null,0]
[null,null,null,null,null,null,null,null,null,0,null,0]
[null,null,null,null,null,null,null,null,null,0,null,0]
[null,null,null,null,null,null,null,null,null,0,null,0]
[null,null,null,null,null,null,null,null,null,0,null,0]
[null,null,null,null,null,null,null,null,null,0,null,0]
[null,null,null,null,null,null,null,null,null,0,null,0]
[null,null,null,null,null,null,null,null,null,{"$f":"SUM(L182/30)","v":0},null,0]
[null,null,null,null,null,null,null,null,null,{"$f":"SUM(L183/30)","v":0},null,0]
[null,null,null,null,null,null,null,null,null,{"$f":"SUM(L184/30)","v":0},null,0]
[null,null,null,null,null,null,null,null,null,0,null,0,null,null,null,null,null,null,null,null,null,null,null,null,null,null,null,null,null,null,null,null,null,null,null,null,null,null,null,null,null,null,null,null,null,null,null,null,null,null,null,null,14]
[null,null,null,null,null,null,null,null,null,0,null,0]
[null,null,null,null,null,null,null,null,null,0,null,0]
[null,null,null,null,null,null,null,null,null,{"$f":"SUM(J169:K187)","v":0},null,{"$f":"SUM(L169:M187)","v":0},null,"Total Months/Days served"]
[null,null,"SUMMARY:"]
[null,null,"Total number of Days onboard DP vessel from the date full DP Cert. received and this should match with the IMCA Log Book:"]
[null,null,"Candidate Signature:"]
[]
[null,null,"*  Unless information’s provided CV’s will not be reviewed."]
[null,null,"** Working abroad  - requires copy of Passport with the Immigration /Visa entries (Entry/Exit)"]
[]
[null,null,"DATA PROTECTION NOTICE:"]
[]
[null,null,"At Maritime Universal (hereafter referred to as \"Crew Managers\"), we take your privacy seriously and handle your personal information with the utmost care. The information you provide will be securely stored in our database and used strictly for the following purposes:"]
[null,null,null,null,null,".",null,"Crew assignment and management – for identifying suitable assignments and overseeing crew operations."]
[null,null,null,null,null,".",null,"Regulatory compliance – to comply with applicable laws, regulations, and contractual obligations of the employing companies."]
[null,null,null,null,null,null,null,"and in accordance with any limitation period."]
[null,null,null,null,null,".",null,"Protection of vital interests – where necessary to safeguard your well-being and safety."]
[]
[null,null,"Your personal information will never be sold or used for marketing purposes."]
[]
[null,null,"If you believe that any information we hold about you is incorrect, you may request access, correction, or deletion. For any queries or concerns, please contact our director: vladlena@maritime-universal.com."]
[]
[null,null,"SEAFARER DECLARATION STATEMENT:"]
[]
[null,null,"I hereby declare that all information provided in this application is true, complete, and accurate.\nI acknowledge and accept that:\n1.  The Owners/Managers of any vessel to which I am assigned, and the Crew Managers and associated companies, may process my personal information for:\n         o Crew selection and assignment.\n         o Assignment management.\n         o Compliance with legal, regulatory, and contractual obligations.\n         o Protecting my vital interests.\n2.  My personal data will be stored securely in the Crew Managers' database and processed as required during my current assignment and for any further period necessary to fulfill the above purposes.\n3.  My personal data may be transferred between the Crew Managers and affiliated companies, including to jurisdictions with different data protection laws. In such cases, appropriate measures will be taken to ensure the security of my personal information.\n4.  If my personal information includes sensitive data, I consent to its processing in accordance with the above terms."]
[]
[]
[]
[null,null,"Please select appropriate box, print name, and date in acceptance of the above declaration:"]
[]
[null,null,"   Accepted:"]
[]
[null,null,"Seafarer name (full name):"]
[null,null,"  Date (dd/mm/yyyy):"]

{"sheet":"Registers","index":1,"n_rows":975,"n_cols":23,"rows_kept":975,"cut":false,"hidden":false,"merged":[]}
[null,"DP","KSA Visa Type","Position","Agent","Nationality","Country","Airport","Relation","Licence","Course","Medical doc","Other Document","Vessel","Port","Signoff Reason","VslType","Engine Type","Engine model","Language","Blood Group","Unit","Religion"]
["Yes","DP0","Single Entry","AB SWAT","EVROMARINE SERVICE LTD","ANGUILLAN","ANGUILLA","ADLER","BROTHER","(OOEW) A-III/1","Advanced Chemical Tanker operations A-V / 1-1-3","Aids Test","NOK declaration form","ZAMIL 1","ABU ALI PIER ","DISCIPLINARY GROUNDS","AHTSS"," ","Acert Dittamar"," ","O+","EU","ANIMISM"]
["No","DP1","Multiple Entry","ABLEBODIED SEAMEN","GLANCE ONE SHIP MANAGEMENT PVT LTD","AFGHAN","AFGHANISTAN","AGARTALA","COUSIN","(OOEW) A-III/1 ENDORSEMENT","Advanced fire fighting A-VI / 3","Anti Tentnus",null,"ZAMIL 101","DAMMAM PORT","END OF CONTRACT","AHTSS DP 2",null,"Bergen",null,"O-","UK","ATHEIST"]
[null,"DP2",null,"ADMIN ASSISTANT","GLOBAL MARINE RESOURCES LLC","ALAND ISLAND","ALAND ISLANDS","AHMEDABAD","DAUGHTER","(OOW) A-II/1","Advanced Oil Tanker operations A-V / 1-1-2","Cholera Test",null,"ZAMIL 102","JUAYMAH PIER ","MEDICAL","Crew Boat",null,"Caterpillar",null,"A+","USA","BUDDHISM"]
[null,"DP3",null,"AIR DIVER","GMM GLOBAL MARITIME MANILA INC.","ALBANIAN","ALBANIA","ALEXANDRIA BEA","FATHER","(OOW) A-II/1 ENDORSEMENT","Advanced Tanker operations (LPG Tanker) A-V / 1-2-2","Covid Booster Dose",null,"ZAMIL 103","RASTANURA PORT","OTHER","Diving Vessel / 4Pt Mooring",null,"Cummins",null,"A-",null,"CHRISTIANITY"]
[null,"N/A",null,"AIR DIVER MEDIC","HIGH TIDE SHIP MANAGEMENT PVT. LTD","ALGERIAN","ALGERIA","ALLAHABAD","FRIEND","A-II/4","Advanced Training for IGF code A-V / 3-2","Covid Vaccination Dose 1",null,"ZAMIL 104","SAFANIYA PIER","TRANSFER","DSV DP vessel",null,"Henan Deutz",null,"B+",null,"HINDUISM"]
[null,null,null,"AIR DIVER WELDER","JDA INTER-PHIL MARITIME SERVICES CORP","AMERICAN","AMERICAN SAMOA","ALMAKTOUM","GRANDMOTHER","A-II/5","Advanced Training for ships operating in polar waters A-V / 4-2","Covid Vaccination Dose 2",null,"ZAMIL 105","TANAJIB PIER",null,"Liftboat",null,"Mak",null,"B-",null,"ISLAM"]
[null,null,null,"AIR DIVING SUPERVISOR","KRISH MARINE & SUPPLY AGENT","ANDORRAN","ANDORRA","AMRITSAR","HUSBAND","A-III/3","Basic safety training A-VI / 1","Drug and alcohol Test",null,"ZAMIL 106","WEST PIER",null,"Maintenance Vessel",null,"Niigata",null,"AB+",null,"JUDAISM"]
[null,null,null,"AIR INSPECTION DIVER CSWIP 3.2U","MARITUS MARITIME SERVICE INC - PHILIPINES","ANGOLAN","ANGOLA","ANAPA","MOTHER","A-III/3 ENDORSEMENT","Basic Tanker operations (LPG Tanker) A-V / 1-2-1","FLAG STATE MEDICAL CERTIFICATE",null,"ZAMIL 107","AALBORG",null,"Offshore Support Vessel",null,"Rolls Royce",null,"AB-",null,"OTHERS"]
[null,null,null,"AIR LEAD DIVER","PT. HADI JAYA MAKMUR","ANTARCTICAN","ANTARCTICA","AURANGABAD","PARTNER","A-III/4","Basic Tanker operations (Oil & Chemical Tanker) A-V / 1-1-1","Hepatitis A Vaccination",null,"ZAMIL 108","ABBOT POINT",null,"Supply Vessel",null,"Ulstein Aquamaster"]
[null,null,null,"AIR WELDER DIVER","PT. MADICCAH JAYA","ANTIGUAN","ANTIGUA AND BARBUDA","BAGDOGRA","SISTER","A-III/5","Basic Training for IGF code A-V / 3-1","Hepatitis B Vaccination",null,"ZAMIL 11","ABIDJAN",null,"Utility Support Vessel",null,"Wartsila"]
[null,null,null,"ANCHOR HANDLING SUPERVISOR","RYAN SHIP MANAGEMENT","ARGENTINE","ARGENTINA","BANGALORE","SON","A-III/6","Basic Training for ships operating in polar waters A-V / 4-1","Hepatitis Test",null,"ZAMIL 12","ABU DHABI",null,"Utility/Workboat",null,"Yanmar"]
[null,null,null,"ARAMOO REP","SEA BREEZE SHIPPING LTD.","ARMENIAN ","ARMENIA","BELAGAVI","UNKNOWN","A-III/6 ENDORSEMENT","Boatman Certificate","Hepatitis Vaccination",null,"ZAMIL 13","ABURATSU",null,"Work Boat/Supply Vessel"]
[null,null,null,"ASSISTANT ENGINEER","TRIOCEANIC MANNING AND SHIPPING INC – PHILIPINES","ARUBAN","ARUBA","BELGAUM","WIFE","A-III/7","BOSIET / FOET","IN KINGDOM MEDICAL",null,"ZAMIL 14","ACAJUTLA",null,"Workboat "]
[null,null,null,"AUTOCAD REPORT WRITER","ZAMIL OFFSHORE SERVICES COMPANY","AUSTRALIAN","AUSTRALIA","BENGALURU",null,"Chief Mate A-II/2","Bridge resources management (BRM) B-VIII / 2","KSA BLOOD GROUP CERTIFICATE",null,"ZAMIL 15","ACAPULCO",null,"Workboat/Offshore Supply Vessel"]
[null,null,null,"BAKER",null,"AUSTRIAN","AUSTRIA","BHOPAL",null,"Chief Mate A-II/2 ENDORSEMENT","Bridge team management A-II / 2","Medical FITNESS certificate",null,"ZAMIL 16","ADANA"]
[null,null,null,"BARGE MASTER",null,"AZERBAIJANI","AZERBAIJAN","BHUBANESWAR",null,"Class - I A-III/2","CA-EBS","Tredmill Test",null,"ZAMIL 17","ADELAIDE"]
[null,null,null,"BARGE OFFSHORE INSTALLATION",null,"BAHAMIAN","BAHAMAS","BILLUND",null,"Class - I A-III/2 ENDORSEMENT","Cook certificate","Typhoid Vaccination",null,"ZAMIL 18","ADEN"]
[null,null,null,"BOATSWAIN ",null,"BAHRAINI","BAHRAIN","BILLUND",null,"Class - II A-III/2","Crane Maintenance","Vessel D&A Test",null,"ZAMIL 19","AGUADULCE"]
[null,null,null,"BOSUN",null,"BANGLADESHI","BANGLADESH","BRUNSWICK",null,"Class - II A-III/2 ENDORSEMENT","Crisis Mgnt and Human Behaviour on Passenger Ships A-V / 2-2","Yellow Fever",null,"ZAMIL 2","AICHI"]
[null,null,null,"CAMP BOSS",null,"BARBADIAN","BARBADOS","BRUSSELS",null,"Crane Operator Certificate","Crowd Management for passenger ship A–V / 2-1",null,null,"ZAMIL 21","AIN SOKHNA"]
[null,null,null,"CHIEF COOK",null,"BARTHELEMOIS","BELARUS","BUCHAREST OTP",null,"CRANE Operator Certificate ENDORSEMENT","Diploma in Electrical Engineering",null,null,"ZAMIL 22","AKITA"]
[null,null,null,"CHIEF ENGINEER",null,"BASOTHO","BELGIUM","BUENOS AIRES (EZE)",null,"GMDSS","ECDIS A-II / 1 Model 1.27",null,null,"ZAMIL 23","AL HUDAYDAH"]
[null,null,null,"CHIEF MATE",null,"BATSWANA","BELIZE","CALICUT",null,"GMDSS ENDORSEMENT ENDORSEMENT","ECDIS Furuno",null,null,"ZAMIL 24","AL JUBAIL"]
[null,null,null,"CHIEF MATE DPO",null,"BELARUSIAN","BENIN","CAP HAITIEN",null,"License issued by department of Health (Saudi)","Elementary first aid A-VI / 1-3",null,null,"ZAMIL 25","AL MUKALLA"]
[null,null,null,"CHIEF STEWARD",null,"BELGIAN","BERMUDA","CAPE PALMAS",null,"Master A-II/2","Energy Management",null,null,"ZAMIL 26","AL SHAHEEN"]
[null,null,null,"CLERK",null,"BELIZEAN","BHUTAN","CAPE TOWN",null,"Master A-II/2 ENDORSEMENT","Engine room resource management (ERM)A-III/1, A-III/2, A-III / 3",null,null,"ZAMIL 3","ALANG"]
[null,null,null,"COOK",null,"BENINESE","BOLIVIA","CAPETOWN",null,"Messman","Environmental Management",null,null,"ZAMIL 301","ALASKA"]
[null,null,null,"COXSWAIN",null,"BERMUDIAN","BOSNIA AND HERZEGOVINA","CARACAS",null,"Ships' Cook","Fast Recue Craft Coxswain",null,null,"ZAMIL 31","ALEXANDRIA"]
[null,null,null,"CRANE OPERATOR",null,"BHUTANESE","BOTSWANA","CARDIFF",null,null,"Fire prevention & fire fighting A-VI / 1-2",null,null,"ZAMIL 32","ALGECIRAS"]
[null,null,null,"DECK FOREMAN",null,"BIOT","BOUVET ISLAND","CARNARVON",null,null,"Food Handling and Hygiene",null,null,"ZAMIL 33","ALGIERS"]
[null,null,null,"DIVE INSPECTOR",null,"BISSAU-GUINEAN","BRAZIL","CARTAGENA",null,null,"Generic ECDIS",null,null,"ZAMIL 34","ALIAGA"]
[null,null,null,"DIVER ",null,"BOLIVIAN","BRITISH INDIAN OCEAN TERRITORY","CASABLANCA",null,null,"H2S",null,null,"ZAMIL 35","ALTAMIRA"]
[null,null,null,"DIVING LEAD",null,"BOSNIAN","BRITISH VIRGIN ISLANDS","CASABLANCA (MOH. V)",null,null,"HDA (HELIDECK ASSISTANT)",null,null,"ZAMIL 36","AMRITSAR"]
[null,null,null,"DIVING MEDICAL PRACTITIONER",null,"BOUVET ISLAND","BRUNEI DARUSSALAM","CASTRO PINTO",null,null,"Helm (leadership and management skills) A-II / 2, A-III / 2",null,null,"ZAMIL 37","AMSTERDAM"]
[null,null,null,"DIVING MEDICAL TECHNICIAN",null,"BRAZILIAN","BULGARIA","CATANIA",null,null,"HERTL (HELIDECK EMERGENCY RESPONSE TEAM MEMBER LEADER)",null,null,"ZAMIL 4","ANCON"]
[null,null,null,"DOCK MASTER",null,"BRITISH","BURKINA FASO","CAYENNE",null,null,"HERTM (HELIDECK EMERGENCY RESPONSE TEAM MEMBER TRAINING)",null,null,"ZAMIL 401","ANEGASAKI"]
[null,null,null,"DP OFFICER",null,"BRITISH VIRGIN ISLAND","BURUNDI","CHANARAL",null,null,"HFF (HELOCOPTER FIRE FIGHTING)",null,null,"ZAMIL 402","ANGOLA"]
[null,null,null,"ELECTRICAL ENGINEER",null,"BRUNEIAN","CAMBODIA","CHANDIGARH",null,null,"HLO (HELICOPTER LANDING OFFFICER)",null,null,"ZAMIL 403","ANNABA"]
[null,null,null,"ELECTRICIAN",null,"BULGARIAN","CAMEROON","CHANGSHA",null,null,"HOIT (HELIDECK OPERATION INITIAL TRAINING)",null,null,"ZAMIL 404","ANTOFAGASTA"]
[null,null,null,"ELECTRONIC ENGINEER",null,"BURKINABE","CANADA","CHARLEROI",null,null,"HUET (HELICOPTER UNDERWATER ESCAPE TRAINING)",null,null,"ZAMIL 405","ANTWERP"]
[null,null,null,"ELECTRO-TECHNICAL OFFICER",null,"BURMESE","CAPE VERDE","CHARLES DE GAULE",null,null,"ISM code A.1441 (18)",null,null,"ZAMIL 406","AQABA"]
[null,null,null,"ENGINE CADET",null,"BURUNDIAN","CAYMAN ISLANDS","CHARLESTON",null,null,"JRC ECDIS",null,null,"ZAMIL 407","ARATU"]
[null,null,null,"ENGINE ROOM RATING",null,"CABO VERDEAN","CENTRAL AFRICAN REPUBLIC","CHARLOTTE",null,null,"Kongsberg K Bridge-ECDIS",null,null,"ZAMIL 41","ARICA"]
[null,null,null,"ENGINEER",null,"CAMBODIAN","CHAD","CHENGDU",null,null,"Marlin English proficiency",null,null,"ZAMIL 42","ARUBA"]
[null,null,null,"ENGINEER OFFICER-OF-THE-WATCH (EOOW)",null,"CAMEROONIAN","CHILE","CHENNAI",null,null,"Medical & first aid A-VI / 4-1",null,null,"ZAMIL 5","ARUN"]
[null,null,null,"ENVIRONMENTAL HEALTH INSPECTOR",null,"CANADIAN","CHINA","CHERNIVTSI",null,null,"Medical care A-VI / 4-2",null,null,"ZAMIL 50","AT SEA.."]
[null,null,null,"FACILITY ENGINEER",null,"CAYMANIAN","CHRISTMAS ISLAND","CHETUMAL",null,null,"Personal safety & social responsibility A-VI / 1-4",null,null,"ZAMIL 501","AUCKLAND"]
[null,null,null,"FITTER",null,"CENTRAL AFRICAN","COCOS (KEELING) ISLANDS","CHIANG MAI",null,null,"Personal survival techniques A-VI / 1-1",null,null,"ZAMIL 502","AUGHINISH"]
[null,null,null,"FOOD INSPECTOR",null,"CHAD","COLOMBIA","CHIANG RAY",null,null,"Proficiency in designated security duties (PDSD) A-VI / 6-2",null,null,"ZAMIL 503","AUGUSTA"]
[null,null,null,"FOOD INSPECTOR (OFF-SHORE)",null,"CHANNEL ISLAND","COMOROS","CHICAGO",null,null,"Proficiency in fast rescue boats A-VI / 2-2",null,null,"ZAMIL 504","BAHAMAS"]
[null,null,null,"FOOD INSPECTOR (ON-SHORE)",null,"CHILEAN","CONGO(BRAZZAVILLE)","CHICAGO OHARE INTERN",null,null,"Proficiency in security awareness (PSA) A-VI / 6-1",null,null,"ZAMIL 505","BAHIA BLANCA"]
[null,null,null,"FORKLIFT OPERATOR",null,"CHINESE","CONGO, (KINSHASA)","CHICLAYO",null,null,"Proficiency in survival craft & rescue boats A-VI / 2-1",null,null,"ZAMIL 506","BAHRAIN"]
[null,null,null,"FORT CONTROLLER VTS OPERATOR",null,"CHRISTMAS ISLAND","COOK ISLANDS","CHITOSE",null,null,"Quality Management",null,null,"ZAMIL 507","BALBOA"]
[null,null,null,"FOURTH ENGINEER",null,"COCOS ISLAND","COSTA RICA","CHITTAGONG",null,null,"Radar & ARPA simulator training- management level A-II / 1-2",null,null,"ZAMIL 508","BALIKPAPAN"]
[null,null,null,"GP RATING",null,"COLOMBIAN","COTEDIVOIRE","CHRISTCHURCH",null,null,"Re-breather training",null,null,"ZAMIL 51","BALTIMORE"]
[null,null,null,"GROUP LEADER",null,"COMORIAN","CROATIA","CHURCHILL",null,null,"Refresher & updating I / II & III / 2",null,null,"ZAMIL 52","BANDAR ABBAS"]
[null,null,null,"GROUT TECHNICIAN",null,"CONGOLESE","CUBA","CIENFUEGOS",null,null,"Rigging and slinging",null,null,"ZAMIL 53","BANDAR KHOMEINI"]
[null,null,null,"HSE OFFICER",null,"CONGOLESE","CYPRUS","CIUDAD DEL CARMEN",null,null,"Ship Security Officers course (SSO) A-VI / 5",null,null,"ZAMIL 54","BANDIRMA"]
[null,null,null,"INFORMATION DEVELOPER",null,"COOK ISLAND","CZECH REPUBLIC","CLARK AIR BASE",null,null,"Simrad Maris ECDIS 900",null,null,"ZAMIL 55","BANGKOK"]
[null,null,null,"INSPECTION COORDINATOR",null,"COSTA RICAN","DENMARK","CLEVELAND",null,null,"Tankers familiarization A-V / 1 (1, 2)",null,null,"ZAMIL 56","BANIYAS"]
[null,null,null,"INSPECTION DIVER",null,"CROATIAN","DJIBOUTI","CLUJ NAPOCA",null,null,"THUET (TROPICAL HELICOPTER UNDERWATER ESCAPE TRAINING)",null,null,"ZAMIL 57","BANJARMASIN"]
[null,null,null,"JUNIOR COOK",null,"CUBAN","DOMINICA","COCHIN",null,null,null,null,null,"ZAMIL 58","BANTRY BAY"]
[null,null,null,"JUNIOR STEWARD",null,"CYPRIOT","DOMINICAN REPUBLIC","COFFS HARBOUR",null,null,null,null,null,"ZAMIL 59","BAOSHAN"]
[null,null,null,"LABOR",null,"CZECH","ECUADOR","COIMBATORE",null,null,null,null,null,"ZAMIL 6","BARBERS POINT HAWAII"]
[null,null,null,"LAUNDRY MAN",null,"DANISH","EGYPT","COLOGNE",null,null,null,null,null,"ZAMIL 60","BARCELONA"]
[null,null,null,"LIEF SUPPORT  SUPERVISOR",null,"DJIBOUTIAN","EL SALVADOR","COLOMBO",null,null,null,null,null,"ZAMIL 601","BARRACKPORE"]
[null,null,null,"LIFE SUPPORT TECHNICIAN",null,"DOMINICAN","EQUATORIAL GUINEA","COLON",null,null,null,null,null,"ZAMIL 602","BATAAN"]
[null,null,null,"LOADING MASTER",null,"DOMINICAN","ERITREA","COMODORO RIVADAVIA",null,null,null,null,null,"ZAMIL 61","BATANGAS"]
[null,null,null,"LOGISTICS SCHEDULER",null,"DUTCH","ESTONIA","CONAKRY",null,null,null,null,null,"ZAMIL 62","BATON ROUGE"]
[null,null,null,"MARINE DISPATCHER",null,"ECUADORIAN","ETHIOPIA","CONCEPCION",null,null,null,null,null,"ZAMIL 63","BAUAN"]
[null,null,null,"MARINE ETO",null,"EGYPTIAN","FALKLAND ISLANDS (MALVINAS)","CONSTANTA",null,null,null,null,null,"ZAMIL 64","BAYUQUAN"]
[null,null,null,"MARINE ETO CADET",null,"EMIRATI","FAROE ISLANDS","CONSTANZA",null,null,null,null,null,"ZAMIL 7","BEAUMONT"]
[null,null,null,"MARINE SCHEDULER",null,"EQUATORIAL GUINEAN","FIJI","COPENHAGEN",null,null,null,null,null,"ZAMIL LB1","BEDI PORT"]
[null,null,null,"MASTER",null,"ERITREAN","FINLAND","COPIAOP",null,null,null,null,null,"ZAMIL LB2","BEIHAI"]
[null,null,null,"MASTER DPO",null,"ESTONIAN","FRANCE","CORDOBA",null,null,null,null,null,"ZAMIL LB3","BEIJING"]
[null,null,null,"MATERIAL HANDLER",null,"ETHIOPIAN","FRENCH GUIANA","CORFU",null,null,null,null,null,null,"BEILUN"]
[null,null,null,"MECHANIC",null,"FALKLAND ISLAND","FRENCH POLYNESIA","CORK",null,null,null,null,null,null,"BEILUNGANG"]
[null,null,null,"MECHANIC (DIESEL)",null,"FAROESE","FRENCH SOUTHERN TERRITORIES","CORPUS CHRISTI",null,null,null,null,null,null,"BEIRA"]
[null,null,null,"MECHANIC (SENIOR DIESEL)",null,"FIJIAN","GABON","CORRIENTES",null,null,null,null,null,null,"BEIRUT"]
[null,null,null,"MESSBOY",null,"FILIPINO","GAMBIA","COTABATO",null,null,null,null,null,null,"BELEM"]
[null,null,null,"MESSMAN",null,"FINNISH","GEORGIA","COTONOU",null,null,null,null,null,null,"BELGIUM"]
[null,null,null,"MOORING MAN",null,"FRENCH","GERMANY","COX'S BAZAAR",null,null,null,null,null,null,"BELL BAY"]
[null,null,null,"MOTORMAN",null,"FRENCH GUIANESE","GHANA","CRESCENT CITY CA",null,null,null,null,null,null,"BENICIA"]
[null,null,null,"NURSE",null,"FRENCH POLYNESIAN","GIBRALTAR","CURACAO",null,null,null,null,null,null,"BENOA"]
[null,null,null,"OFFICER-ON-WATCH (OOW)",null,"FRENCH SOUTHERN TERRITORIES","GREECE","CURITIBA",null,null,null,null,null,null,"BERLIN"]
[null,null,null,"OILER",null,"GABONESE","GREENLAND","DAKAR",null,null,null,null,null,null,"BERONG"]
[null,null,null,"OILER SWAT",null,"GAMBIAN","GRENADA","DALAMAN",null,null,null,null,null,null,"BESIKTAS SHIPYARD"]
[null,null,null,"PAINTER",null,"GEORGIAN","GUADELOUPE","DALIAN",null,null,null,null,null,null,"BHOPAL"]
[null,null,null,"PORT CAPTAIN",null,"GERMAN","GUAM","DALLAS",null,null,null,null,null,null,"BILBAO"]
[null,null,null,"PORT CONTROLLER VTS OPERATOR",null,"GHANAIAN","GUATEMALA","DALLAS/FORT WORTH",null,null,null,null,null,null,"BINTULU"]
[null,null,null,"PORT ENGINEER",null,"GIBRALTAR","GUERNSEY","DAMASCUS",null,null,null,null,null,null,"BITUNG"]
[null,null,null,"PURSER",null,"GREEK","GUINEA","DAMMAM",null,null,null,null,null,null,"BLANG LANCANG"]
[null,null,null,"RADAR OBSERVER",null,"GREENLANDIC","GUINEA-BISSAU","DAR ES SALAAM",null,null,null,null,null,null,"BOL"]
[null,null,null,"RADAR OPERATOR",null,"GRENADIAN","GUYANA","DARWIN",null,null,null,null,null,null,"BONAIRE"]
[null,null,null,"RADIO OFFICER",null,"GUADELOUPE","HAITI","DAVAO",null,null,null,null,null,null,"BONNY"]
[null,null,null,"RADIO/RADAR OBSERVER",null,"GUAMANIAN","HAWAI ","DAVID",null,null,null,null,null,null,"BONTANG"]
[null,null,null,"RIG MOVE MASTER",null,"GUATEMALAN","HEARD AND MCDONALD ISLANDS","DEER LAKE",null,null,null,null,null,null,"BONYTHON"]
[null,null,null,"RIGGER",null,"GUINEAN","HOLY SEE (VATICAN CITY STATE)","DEHRA DUN",null,null,null,null,null,null,"BORDEAUX"]
[null,null,null,"ROV PILOT",null,"GUYANESE","HONDURAS","DENPASSAR - BALI",null,null,null,null,null,null,"BORNHOLMS"]
[null,null,null,"ROV SUPERVISOR",null,"HAITIAN","HONG KONG, SAR CHINA","DETROIT (METRO)",null,null,null,null,null,null,"BORYEONG"]
[null,null,null,"SAFETY OFFICER",null,"HAWAI ","HUNGARY","DETROIT (WAYNE)",null,null,null,null,null,null,"BOSPHORUS"]
[null,null,null,"SAT DIVING MEDIC",null,"HEARD ISLAND ","ICELAND","DEVONPORT",null,null,null,null,null,null,"BOSTON"]
[null,null,null,"SAT DIVING SUPERVISOR",null,"HONDURAN","INDIA","DHAHRAN",null,null,null,null,null,null,"BOTANY BAY"]
[null,null,null,"SAT DIVING TECHNICIAN",null,"HONG KONG","INDONESIA","DHAKA",null,null,null,null,null,null,"BRAKE"]
[null,null,null,"SAT DIVING WELDER",null,"HUNGARIAN","Iran, Islamic Republic of","DHARAMSALA",null,null,null,null,null,null,"BRAYTON POINT"]
[null,null,null,"SAT INSPECTION DIVER CSWIP 3.2U",null,"ICELANDIC","IRAQ","DIBRUGARH",null,null,null,null,null,null,"BRAZIL"]
[null,null,null,"SAT LEAD DIVER",null,"I-KIRIBATI","IRELAND","DIU",null,null,null,null,null,null,"BREMERHAVEN"]
[null,null,null,"SEAMAN",null,"INDIAN","ISLE OF MAN","DJERBA",null,null,null,null,null,null,"BREST"]
[null,null,null,"SECOND COOK",null,"INDONESIAN","ISRAEL","DJIBOUTI",null,null,null,null,null,null,"BRIDGETOWN"]
[null,null,null,"SECOND ENGINEER",null,"IRANIAN","ITALY","DOHA",null,null,null,null,null,null,"BRINDISI"]
[null,null,null,"SECOND MASTER",null,"IRAQI","JAMAICA","DOMINICA",null,null,null,null,null,null,"BRISBANE"]
[null,null,null,"SECOND MATE",null,"IRISH","JAPAN","DON MUEANG INT. APT.",null,null,null,null,null,null,"BRISTOL"]
[null,null,null,"SECOND MATE DPO",null,"ISRAELI","JERSEY","DORTMUND",null,null,null,null,null,null,"BRIXHAM"]
[null,null,null,"SHIFT CONTROLMAN",null,"ITALIAN","JORDAN","DOUALA",null,null,null,null,null,null,"BROOME"]
[null,null,null,"STEWARD",null,"IVORIAN","KAZAKHSTAN","DRESDEN",null,null,null,null,null,null,"BRUNSBUTTEL"]
[null,null,null,"SUPERINTENDENT",null,"JAMAICAN","KENYA","DUBAI",null,null,null,null,null,null,"BRUNSWICK"]
[null,null,null,"SUPERNUMERARY",null,"JAPANESE","KIRIBATI","DUBLIN",null,null,null,null,null,null,"BRUSSELS"]
[null,null,null,"SURVEY PARTY",null,"JERSEY","KOREA (NORTH)","DUBROVNIK",null,null,null,null,null,null,"BUCHANAN"]
[null,null,null,"SURVEYOR",null,"JORDANIAN","KOREA (SOUTH)","DUMAGUETE",null,null,null,null,null,null,"BUENAVENTURA"]
[null,null,null,"SYSTEM DEVELOPER",null,"KAZAKHSTANI","KUWAIT","DUNDEE",null,null,null,null,null,null,"BUENOS AIRES"]
[null,null,null,"TANKERMAN",null,"KENYAN","KYRGYZSTAN","DUNEDIN",null,null,null,null,null,null,"BUKPYUNG"]
[null,null,null,"THIRD ENGINEER",null,"KITTITIAN","LAO PDR","DURBAN",null,null,null,null,null,null,"BUNBURY"]
[null,null,null,"THIRD MATE",null,"KUWAITI","LATVIA","DUSSELDORF",null,null,null,null,null,null,"BURGAS"]
[null,null,null,"THIRD MATE DPO",null,"KYRGYZSTANI","LEBANON","EAST LONDON",null,null,null,null,null,null,"BURNIE"]
[null,null,null,"TRAINEE ABLEBODIED SEAMEN",null,"LAO, LAOTIAN","LESOTHO","EAST MIDLANDS",null,null,null,null,null,null,"BUSAN"]
[null,null,null,"TRAINEE CHIEF ENGINEER",null,"LATVIAN","LIBERIA","EDINBURGH",null,null,null,null,null,null,"CADIZ"]
[null,null,null,"TRAINEE CHIEF MATE",null,"LEBANESE","LIBYA","EDMONTON",null,null,null,null,null,null,"CAI LAN"]
[null,null,null,"TRAINEE CHIEF MATE DPO",null,"LIBERIAN","LIECHTENSTEIN","EINDHOVEN",null,null,null,null,null,null,"CAI MEP"]
[null,null,null,"TRAINEE CRANE OPERATOR",null,"LIBYAN","LITHUANIA","ELAT",null,null,null,null,null,null,"CAIRNS"]
[null,null,null,"TRAINEE ETO",null,"LIECHTENSTEIN","LUXEMBOURG","EMDEN",null,null,null,null,null,null,"CALDERA"]
[null,null,null,"TRAINEE MASTER",null,"LITHUANIAN","MACAO, SAR CHINA","ERCAN",null,null,null,null,null,null,"CALLAO"]
[null,null,null,"TRAINEE MASTER DPO",null,"LUXEMBOURG","MACEDONIA, REPUBLIC OF","ESBJERG",null,null,null,null,null,null,"CAM PHA"]
[null,null,null,"TRAINEE OILER",null,"MACANESE","MADAGASCAR","ESMERELDAS",null,null,null,null,null,null,"CAMERON"]
[null,null,null,"TRAINEE SECOND ENGINEER",null,"MACEDONIAN","MALAWI","ESPERANCE",null,null,null,null,null,null,"CAMPBELL BAY"]
[null,null,null,"TRAINEE SECOND MATE",null,"MAHORAN","MALAYSIA","EVENES",null,null,null,null,null,null,"CANADA"]
[null,null,null,"TRAINEE SECOND MATE DPO",null,"MALAGASY","MALDIVES","EXETER",null,null,null,null,null,null,"CANAVERAL"]
[null,null,null,"TRAINEE THIRD ENGINEER",null,"MALAWIAN","MALI","FAEROES",null,null,null,null,null,null,"CANNAKKALE"]
[null,null,null,"TRAINEE THIRD MATE DPO",null,"MALAYSIAN","MALTA","FARO",null,null,null,null,null,null,"CANVEY ISLAND"]
[null,null,null,"VTS OPERATOR (OFF-SHORE)",null,"MALDIVIAN","MARSHALL ISLANDS","FLORENCE (PISA)",null,null,null,null,null,null,"CAOFEIDIAN"]
[null,null,null,"VTS OPERATOR (ON-SHORE)",null,"MALIAN","MARTINIQUE","FLORIANOPOLIS",null,null,null,null,null,null,"CAOJING"]
[null,null,null,"WAITER",null,"MALTESE","MAURITANIA","FORT DE FRANCE",null,null,null,null,null,null,"CAPE CUVIER"]
[null,null,null,"WELDER",null,"MANX","MAURITIUS","FORT LAUDERDALE",null,null,null,null,null,null,"CAPE TOWN"]
[null,null,null,null,null,"MARSHALLESE","MAYOTTE","FORTALEZA",null,null,null,null,null,null,"CARRASCO"]
[null,null,null,null,null,"MARTINIQUAIS","MEXICO","FRANKFURT",null,null,null,null,null,null,"CARTAGENA"]
[null,null,null,null,null,"MAURITANIAN","MICRONESIA, FEDERATED STATES OF","FREEPORT",null,null,null,null,null,null,"CASABLANCA"]
[null,null,null,null,null,"MAURITIAN","MOLDOVA","FREETOWN",null,null,null,null,null,null,"CAUCEDO"]
[null,null,null,null,null,"MEXICAN","MONACO","FRIEDRICHSHAFEN",null,null,null,null,null,null,"CEZI"]
[null,null,null,null,null,"MICRONESIAN","MONGOLIA","FT. MYERS FLORIDA",null,null,null,null,null,null,"CHANDIGARH"]
[null,null,null,null,null,"MIQUELONNAIS","MONTENEGRO","FUERTEVENTURA",null,null,null,null,null,null,"CHANGXINGDAO"]
[null,null,null,null,null,"MOLDOVAN","MONTSERRAT","FUKUOKA",null,null,null,null,null,null,"CHARLESTON"]
[null,null,null,null,null,"MONACAN","MOROCCO","FUNAFUTI",null,null,null,null,null,null,"CHENNAI"]
[null,null,null,null,null,"MONGOLIAN","MOZAMBIQUE","FUNCHAL  MADEIRA",null,null,null,null,null,null,"CHENSHAN"]
[null,null,null,null,null,"MONTENEGRIN","MYANMAR","FUZHOU",null,null,null,null,null,null,"CHERBOURG"]
[null,null,null,null,null,"MONTSERRATIAN","NAMIBIA","GALWAY",null,null,null,null,null,null,"CHERRY POINT"]
[null,null,null,null,null,"MOROCCAN","NAURU","GAMBA",null,null,null,null,null,null,"CHIBA"]
[null,null,null,null,null,"MOZAMBICAN","NEPAL","GANDER",null,null,null,null,null,null,"CHINA"]
[null,null,null,null,null,"NAMIBIAN","NETHERLANDS","GASPE",null,null,null,null,null,null,"CHITA"]
[null,null,null,null,null,"NAURUAN","NETHERLANDS ANTILLES","GAYA",null,null,null,null,null,null,"CHITTAGONG"]
[null,null,null,null,null,"NEPALESE","NEW CALEDONIA","GDANSK",null,null,null,null,null,null,"CHIWAN"]
[null,null,null,null,null,"NETHERLANDS ANTILLEN","NEW ZEALAND","GEELONG",null,null,null,null,null,null,"CHORNOMORSK"]
[null,null,null,null,null,"NEW CALEDONIAN","NICARAGUA","GENOA",null,null,null,null,null,null,"CIGADING"]
[null,null,null,null,null,"NEW ZEALAND","NIGER","GEORGE",null,null,null,null,null,null,"CILACAP"]
[null,null,null,null,null,"NICARAGUAN","NIGERIA","GEORGETOWN",null,null,null,null,null,null,"CIVITAVECCHIA"]
[null,null,null,null,null,"NIGERIAN","NIUE","GEORGETOWN SC",null,null,null,null,null,null,"CLUJ NAPOCA"]
[null,null,null,null,null,"NIGERIEN","NORFOLK ISLAND","GERALDTON",null,null,null,null,null,null,"COATZACOALCOS"]
[null,null,null,null,null,"NIUEAN","NORTHERN MARIANA ISLANDS","GIBRALTAR",null,null,null,null,null,null,"COCHIN"]
[null,null,null,null,null,"NI-VANUATU","NORWAY","GISBORNE",null,null,null,null,null,null,"COLOMBIA"]
[null,null,null,null,null,"NORFOLK ISLAND","OMAN","GIZAN",null,null,null,null,null,null,"COLOMBO"]
[null,null,null,null,null,"NORTH KOREAN","OTHERS","GLADSTONE",null,null,null,null,null,null,"CONSTANTA"]
[null,null,null,null,null,"NORTHERN MARIANAN","PAKISTAN","GLASGOW",null,null,null,null,null,null,"CONVENIENT"]
[null,null,null,null,null,"NORWEGIAN","PALAU","GOA",null,null,null,null,null,null,"COOS BAY"]
[null,null,null,null,null,"OMANI","PALESTINIAN TERRITORY","GOLFITO",null,null,null,null,null,null,"COPENHAGEN"]
[null,null,null,null,null,"OTHERS","PANAMA","GORAKHPUR",null,null,null,null,null,null,"CORINTO"]
[null,null,null,null,null,"PAKISTANI","PAPUA NEW GUINEA","GOTHENBURG",null,null,null,null,null,null,"CORK"]
[null,null,null,null,null,"PALAUAN","PARAGUAY","GOVE",null,null,null,null,null,null,"CORONEL"]
[null,null,null,null,null,"PALESTINIAN TERRITORY","PERU","GRAFTON",null,null,null,null,null,null,"CORPUS CHRISTI"]
[null,null,null,null,null,"PANAMANIAN","PHILIPPINES","GRAND CAYMAN",null,null,null,null,null,null,"COSTA AZUL"]
[null,null,null,null,null,"PAPUAN","PITCAIRN","GRAND TURK",null,null,null,null,null,null,"COTONOU"]
[null,null,null,null,null,"PARAGUAYAN","POLAND","GRAZ",null,null,null,null,null,null,"COVE POINT"]
[null,null,null,null,null,"PERUVIAN","PORTUGAL","GRENADA",null,null,null,null,null,null,"CRISTOBAL"]
[null,null,null,null,null,"PITCAIRN ISLAND","PUERTO RICO","GROOT EYLANDT",null,null,null,null,null,null,"CURACAO"]
[null,null,null,null,null,"POLISH","QATAR","GUADALAJARA",null,null,null,null,null,null,"CUXHAVEN"]
[null,null,null,null,null,"PORTUGUESE","REUNION","GUALEGUAYCHU",null,null,null,null,null,null,"DAESAN"]
[null,null,null,null,null,"PUERTO RICAN","ROMANIA","GUAM",null,null,null,null,null,null,"DAHEJ"]
[null,null,null,null,null,"QATARI","RUSSIAN FEDERATION","GUANGZHOU",null,null,null,null,null,null,"DAKAR"]
[null,null,null,null,null,"REUNIONESE","RWANDA","GUATEMALA CITY",null,null,null,null,null,null,"DALIAN"]
[null,null,null,null,null,"ROMANIAN","SAINT HELENA","GUAYAQUIL",null,null,null,null,null,null,"DALRYMPLE"]
[null,null,null,null,null,"RUSSIAN","SAINT KITTS AND NEVIS","GUAYMAS",null,null,null,null,null,null,"DAMIETTA"]
[null,null,null,null,null,"RWANDAN","SAINT LUCIA","GUERNSEY",null,null,null,null,null,null,"DAMMAM"]
[null,null,null,null,null,"SAHRAWI","SAINT PIERRE AND MIQUELON","GUERRERO NEGRO",null,null,null,null,null,null,"DAMPIER"]
[null,null,null,null,null,"SAINT HELENIAN","SAINT VINCENT AND GRENADINES","GULFPORT",null,null,null,null,null,null,"DANGJIN"]
[null,null,null,null,null,"SAINT LUCIAN","SAINT-BARTHELEMY","GUWAHATI",null,null,null,null,null,null,"DAPENG"]
[null,null,null,null,null,"SAINT-MARTIN (FRENCH PART)","SAINT-MARTIN (FRENCH PART)","GWADAR",null,null,null,null,null,null,"DAR ES SALAAM"]
[null,null,null,null,null,"SALVADORIAN","SAMOA","HAIKOU",null,null,null,null,null,null,"DARDANELLES"]
[null,null,null,null,null,"SAMMARINESE","SAN MARINO","HAKODATE",null,null,null,null,null,null,"DARJELING"]
[null,null,null,null,null,"SAMOAN","SAO TOME AND PRINCIPE","HALIFAX",null,null,null,null,null,null,"DARWIN"]
[null,null,null,null,null,"SAO TOMEAN","SAUDI ARABIA","HALMSTAD",null,null,null,null,null,null,"DAVAO"]
[null,null,null,null,null,"SAUDI","SENEGAL","HAMBURG",null,null,null,null,null,null,"DAVISVILLE"]
[null,null,null,null,null,"SENEGALESE","SERBIA","HAMILTON",null,null,null,null,null,null,"DEHRADUN"]
[null,null,null,null,null,"SERBIAN","SEYCHELLES","HAMMERFEST",null,null,null,null,null,null,"DERINCE"]
[null,null,null,null,null,"SEYCHELLOIS","SIERRA LEONE","HANGZHOU",null,null,null,null,null,null,"DEVONPORT"]
[null,null,null,null,null,"SIERRA LEONEAN","SINGAPORE","HANNOVER",null,null,null,null,null,null,"DHAMRA"]
[null,null,null,null,null,"SINGAPOREAN","SLOVAKIA","HANOI",null,null,null,null,null,null,"DIBRUGARH"]
[null,null,null,null,null,"SLOVAK","SLOVENIA","HANOVER",null,null,null,null,null,null,"DILISKELESI"]
[null,null,null,null,null,"SLOVENIAN","SOLOMON ISLANDS","HARTFORD (BRADLEY)",null,null,null,null,null,null,"DJENO TERMINAL"]
[null,null,null,null,null,"SOLOMON ISLAND","SOMALIA","HAT YAI",null,null,null,null,null,null,"DJIBOUTI"]
[null,null,null,null,null,"SOMALI","SOUTH AFRICA","HAUGESUND",null,null,null,null,null,null,"DOHA"]
[null,null,null,null,null,"SOUTH AFRICAN","SOUTH GEORGIA AND THE SOUTH SANDWICH ISLANDS","HAVANA",null,null,null,null,null,null,"DONETSK"]
[null,null,null,null,null,"SOUTH GEORGIA","SOUTH SUDAN","HELSINKI",null,null,null,null,null,null,"DONGGUAN"]
[null,null,null,null,null,"SOUTH KOREAN","SPAIN","HERAKLION",null,null,null,null,null,null,"DORTYOL"]
[null,null,null,null,null,"SOUTH SUDAN","SPAIN","HERMOSILLO",null,null,null,null,null,null,"DOVER"]
[null,null,null,null,null,"SPANISH","SRI LANKA","HIROSHIMA",null,null,null,null,null,null,"DUBAI"]
[null,null,null,null,null,"SPANISH","SUDAN","HO CHI MIN CITY",null,null,null,null,null,null,"DUBAI (DRY DOCK)"]
[null,null,null,null,null,"SRI LANKAN","SURINAME","HOBART",null,null,null,null,null,null,"DUBROVNIK"]
[null,null,null,null,null,"ST. VINCENT & GRENADINES","SVALBARD AND JAN MAYEN ISLANDS","HODEIDAH",null,null,null,null,null,null,"DUNKIRK"]
[null,null,null,null,null,"SUDANESE","SWAZILAND","HONG KONG",null,null,null,null,null,null,"DURBAN"]
[null,null,null,null,null,"SURINAMESE","SWEDEN","HONGKONG",null,null,null,null,null,null,"EEMSHAVEN"]
[null,null,null,null,null,"SVALBARD","SWITZERLAND","HONIARA",null,null,null,null,null,null,"EILAT"]
[null,null,null,null,null,"SWAZI","SYRIAN ARAB REPUBLIC(SYRIA)","HONNINGSVAG",null,null,null,null,null,null,"EL-DEKHEILA"]
[null,null,null,null,null,"SWEDISH","TAIWAN, REPUBLIC OF CHINA","HONOLULU",null,null,null,null,null,null,"EMDEN"]
[null,null,null,null,null,"SWISS","TAJIKISTAN","HORTA",null,null,null,null,null,null,"ENNORE"]
[null,null,null,null,null,"SYRIAN","TANZANIA, UNITED REPUBLIC OF","HOUSTON",null,null,null,null,null,null,"ENSTED"]
[null,null,null,null,null,"TAIWANESE","THAILAND","HOUSTON (IAH)",null,null,null,null,null,null,"EREN"]
[null,null,null,null,null,"TAJIKISTANI","TIMOR-LESTE","HUALIEN",null,null,null,null,null,null,"ESCOBAR"]
[null,null,null,null,null,"TANZANIAN","TOGO","HUBBALLI",null,null,null,null,null,null,"ESMERALDAS ECUADOR"]
[null,null,null,null,null,"THAI","TOKELAU","HUBLI",null,null,null,null,null,null,"EVERETT"]
[null,null,null,null,null,"TIMORESE","TONGA","HUMBERSIDE",null,null,null,null,null,null,"EVERGLADES"]
[null,null,null,null,null,"TOGOLESE","TRINIDAD AND TOBAGO","HYDERABAD",null,null,null,null,null,null,"FALMOUTH"]
[null,null,null,null,null,"TOKELAUAN","TUNISIA","IASI",null,null,null,null,null,null,"FANGCHENGGANG"]
[null,null,null,null,null,"TONGAN","TURKEY","IBIZA",null,null,null,null,null,null,"FAR EAST"]
[null,null,null,null,null,"TRINIDADIAN","TURKMENISTAN","ILHA DO SAL",null,null,null,null,null,null,"FAWLEY"]
[null,null,null,null,null,"TUNISIAN","TURKS AND CAICOS ISLANDS","ILHEUS",null,null,null,null,null,null,"FERNDALE, SEATTLE U.S.A."]
[null,null,null,null,null,"TURKISH","TUVALU","ILOILO",null,null,null,null,null,null,"FERROL"]
[null,null,null,null,null,"TURKMEN","UGANDA","IMPHAL",null,null,null,null,null,null,"FLUSHING"]
[null,null,null,null,null,"TURKS AND CAICOS ISLAND","UKRAINE","INAGUA",null,null,null,null,null,null,"FORT LAUDERDALE"]
[null,null,null,null,null,"TUVALUAN","UNITED ARAB EMIRATES","INCHEON",null,null,null,null,null,null,"FORTALEZA"]
[null,null,null,null,null,"U.S. VIRGIN ISLAND","UNITED KINGDOM","INDORE",null,null,null,null,null,null,"FORT-DE-FRANCE"]
[null,null,null,null,null,"UGANDAN","UNITED STATES OF AMERICA","INVERCARGILL",null,null,null,null,null,null,"FOS"]
[null,null,null,null,null,"UKRAINIAN","URUGUAY","INVERNESS",null,null,null,null,null,null,"FREDERICIA"]
[null,null,null,null,null,"URUGUAYAN","US MINOR OUTLYING ISLANDS","IOANNINA",null,null,null,null,null,null,"FREEPORT"]
[null,null,null,null,null,"UZBEKISTANI","UZBEKISTAN","IOMBORG",null,null,null,null,null,null,"FREMANTLE"]
[null,null,null,null,null,"VATICAN","VANUATU","IQUIQUI",null,null,null,null,null,null,"FSRU LAMPUNG"]
[null,null,null,null,null,"VENEZUELAN","VENEZUELA(BOLIVARIAN REPUBLIC)","ISHIGAKI",null,null,null,null,null,null,"FSRU NUSANTAR"]
[null,null,null,null,null,"VIETNAMESE","VIET NAM","ISLE OF BARRA",null,null,null,null,null,null,"FUJAIRAH"]
[null,null,null,null,null,"WALLIS AND FUTUNA","VIRGIN ISLANDS, US","ISLES OF SCILLY",null,null,null,null,null,null,"FUKUI"]
[null,null,null,null,null,"YEMENI","WALLIS AND FUTUNA ISLANDS","ISLS OF MAN",null,null,null,null,null,null,"FUKUOKA"]
[null,null,null,null,null,"YUGOSLAVIAN","WESTERN SAHARA","ISTANBUL",null,null,null,null,null,null,"FUKUYAMA"]
[null,null,null,null,null,"ZAMBIAN","YEMEN","ISTANBUL (SABIHA GOK",null,null,null,null,null,null,"FUSINA"]
[null,null,null,null,null,"ZIMBABWEAN","YUGOSLAVIA","ITAJAI",null,null,null,null,null,null,"FUTTSU"]
[null,null,null,null,null,null,"ZAMBIA","ITAQUI",null,null,null,null,null,null,"FUZHOU"]
[null,null,null,null,null,null,"ZIMBABWE","IWAKUNI",null,null,null,null,null,null,"GALLE"]
[null,null,null,null,null,null,null,"IZMIR",null,null,null,null,null,null,"GALVESTON"]
[null,null,null,null,null,null,null,"IZMIR (ADNAM M)",null,null,null,null,null,null,"GAMAGORI"]
[null,null,null,null,null,null,null,"JABALPUR",null,null,null,null,null,null,"GANGAVARAM"]
[null,null,null,null,null,null,null,"JACKSONVILLE FL",null,null,null,null,null,null,"GARYVILLE"]
[null,null,null,null,null,null,null,"JACKSONVILLE NC",null,null,null,null,null,null,"GDANSK"]
[null,null,null,null,null,null,null,"JAIPUR",null,null,null,null,null,null,"GDYNIA"]
[null,null,null,null,null,null,null,"JAKARTA",null,null,null,null,null,null,"GEELONG"]
[null,null,null,null,null,null,null,"JAMMU",null,null,null,null,null,null,"GEISMAR"]
[null,null,null,null,null,null,null,"JAMNAGAR",null,null,null,null,null,null,"GEMLIK BORUSAN"]
[null,null,null,null,null,null,null,"JEDDAH",null,null,null,null,null,null,"GENOA"]
[null,null,null,null,null,null,null,"JEREZ DE LA FRONTEIR",null,null,null,null,null,null,"GENTIL"]
[null,null,null,null,null,null,null,"JEREZ DELA FRONTERA",null,null,null,null,null,null,"GEORGETOWN"]
[null,null,null,null,null,null,null,"JINJU",null,null,null,null,null,null,"GERALDTON"]
[null,null,null,null,null,null,null,"JIWANI",null,null,null,null,null,null,"GHENT"]
[null,null,null,null,null,null,null,"JODHPUR",null,null,null,null,null,null,"GIBRALTAR"]
[null,null,null,null,null,null,null,"JOHANNESBURG",null,null,null,null,null,null,"GIJON"]
[null,null,null,null,null,null,null,"JOHORE BARU",null,null,null,null,null,null,"GIOIA TAURA"]
[null,null,null,null,null,null,null,"JOINVILLE",null,null,null,null,null,null,"GISBORNE"]
[null,null,null,null,null,null,null,"K. LUMPUR",null,null,null,null,null,null,"GIZAN"]
[null,null,null,null,null,null,null,"KADAPA (CUDDAPAH)",null,null,null,null,null,null,"GLADSTONE"]
[null,null,null,null,null,null,null,"KAGOSHIMA",null,null,null,null,null,null,"GORE BAY"]
[null,null,null,null,null,null,null,"KALAMATA",null,null,null,null,null,null,"GOTHENBURG"]
[null,null,null,null,null,null,null,"KALININGRAD",null,null,null,null,null,null,"GOVE"]
[null,null,null,null,null,null,null,"KALMAR",null,null,null,null,null,null,"GUAIBA ISLAND"]
[null,null,null,null,null,null,null,"KANDLA",null,null,null,null,null,null,"GUAM"]
[null,null,null,null,null,null,null,"KANNUR",null,null,null,null,null,null,"GUANABARA BAY"]
[null,null,null,null,null,null,null,"KAOHSIUNG",null,null,null,null,null,null,"GUANGDONG DAPENG"]
[null,null,null,null,null,null,null,"KARACHI",null,null,null,null,null,null,"GUANGZHOU"]
[null,null,null,null,null,null,null,"KARRATHA",null,null,null,null,null,null,"GUATEMALA"]
[null,null,null,null,null,null,null,"KARUP",null,null,null,null,null,null,"GUAYAQUIL"]
[null,null,null,null,null,null,null,"KATOWICE",null,null,null,null,null,null,"GUAYMAS"]
[null,null,null,null,null,null,null,"KAVALLA",null,null,null,null,null,null,"GWANGYANG"]
[null,null,null,null,null,null,null,"KAZAN",null,null,null,null,null,null,"HACHINOHE"]
[null,null,null,null,null,null,null,"KEFLAVIK",null,null,null,null,null,null,"HAIFA"]
[null,null,null,null,null,null,null,"KEMI",null,null,null,null,null,null,"HAILI"]
[null,null,null,null,null,null,null,"KEMI TORNIO",null,null,null,null,null,null,"HAIMEN"]
[null,null,null,null,null,null,null,"KERRY COUNTY",null,null,null,null,null,null,"HAIPHONG"]
[null,null,null,null,null,null,null,"KERTEH",null,null,null,null,null,null,"HAKINAN"]
[null,null,null,null,null,null,null,"KHABAROVSK",null,null,null,null,null,null,"HAKODATE"]
[null,null,null,null,null,null,null,"KHAJURAHO",null,null,null,null,null,null,"HALDIA"]
[null,null,null,null,null,null,null,"KHARTOUM",null,null,null,null,null,null,"HALIFAX"]
[null,null,null,null,null,null,null,"KHON KAEN",null,null,null,null,null,null,"HALUL"]
[null,null,null,null,null,null,null,"KIEL",null,null,null,null,null,null,"HAMAD"]
[null,null,null,null,null,null,null,"KIEL,GERMANY",null,null,null,null,null,null,"HAMBANTOTA"]
[null,null,null,null,null,null,null,"KIETA",null,null,null,null,null,null,"HAMBLE"]
[null,null,null,null,null,null,null,"KIEV",null,null,null,null,null,null,"HAMBURG"]
[null,null,null,null,null,null,null,"KINGSCOTE",null,null,null,null,null,null,"HAMILTON"]
[null,null,null,null,null,null,null,"KINGSTON",null,null,null,null,null,null,"HAMMERFEST"]
[null,null,null,null,null,null,null,"KINSHASA",null,null,null,null,null,null,"HARAMACHI"]
[null,null,null,null,null,null,null,"KIRKENES",null,null,null,null,null,null,"HASTINGS"]
[null,null,null,null,null,null,null,"KIRKWALL",null,null,null,null,null,null,"HATSUKAICHI"]
[null,null,null,null,null,null,null,"KIROV",null,null,null,null,null,null,"HAWAII"]
[null,null,null,null,null,null,null,"KISHINEV",null,null,null,null,null,null,"HAY POINT"]
[null,null,null,null,null,null,null,"KISMAYU",null,null,null,null,null,null,"HAZIRA"]
[null,null,null,null,null,null,null,"KLAGENFURT",null,null,null,null,null,null,"HEADLAND"]
[null,null,null,null,null,null,null,"KLAIPEDA",null,null,null,null,null,null,"HEKINAN"]
[null,null,null,null,null,null,null,"KOBE",null,null,null,null,null,null,"HIBI"]
[null,null,null,null,null,null,null,"KOCHI",null,null,null,null,null,null,"HIBIKINADA"]
[null,null,null,null,null,null,null,"KOH SAMUI",null,null,null,null,null,null,"HIGASHI HARIMA"]
[null,null,null,null,null,null,null,"KOJIMA",null,null,null,null,null,null,"HIGASHI OGISHIMA"]
[null,null,null,null,null,null,null,"KOKOLLA",null,null,null,null,null,null,"HIKARI"]
[null,null,null,null,null,null,null,"KOLHAPUR",null,null,null,null,null,null,"HIMEJI"]
[null,null,null,null,null,null,null,"KOLKATA",null,null,null,null,null,null,"HIROHATA"]
[null,null,null,null,null,null,null,"KOMATSU",null,null,null,null,null,null,"HIROSHIMA"]
[null,null,null,null,null,null,null,"KOROR  PALAU",null,null,null,null,null,null,"HITACHI"]
[null,null,null,null,null,null,null,"KOS",null,null,null,null,null,null,"HITACHINAKA"]
[null,null,null,null,null,null,null,"KOSICE KSC",null,null,null,null,null,null,"HO CHI MINH CITY"]
[null,null,null,null,null,null,null,"KOTA BHARU",null,null,null,null,null,null,"HOBART"]
[null,null,null,null,null,null,null,"KOTA KINABALU",null,null,null,null,null,null,"HON GAI"]
[null,null,null,null,null,null,null,"KOZHIKODE",null,null,null,null,null,null,"HONIARA"]
[null,null,null,null,null,null,null,"KRAKOW",null,null,null,null,null,null,"HONOLULU"]
[null,null,null,null,null,null,null,"KRAMFORS",null,null,null,null,null,null,"HOSOSHIMA"]
[null,null,null,null,null,null,null,"KRASNODAR",null,null,null,null,null,null,"HOUSTON"]
[null,null,null,null,null,null,null,"KRISTIANSAND",null,null,null,null,null,null,"HUALIEN"]
[null,null,null,null,null,null,null,"KRISTIANSUND",null,null,null,null,null,null,"HUANGHUA"]
[null,null,null,null,null,null,null,"KUALA LUMPUR",null,null,null,null,null,null,"HUANGPU"]
[null,null,null,null,null,null,null,"KUANTAN",null,null,null,null,null,null,"HUASCO CHILE"]
[null,null,null,null,null,null,null,"KUCHING",null,null,null,null,null,null,"HUELVA"]
[null,null,null,null,null,null,null,"KUMAMOTU",null,null,null,null,null,null,"HUENEME"]
[null,null,null,null,null,null,null,"KUNSAN",null,null,null,null,null,null,"HUIZHOU"]
[null,null,null,null,null,null,null,"KUPANG",null,null,null,null,null,null,"HUNTERSTONE"]
[null,null,null,null,null,null,null,"KUSHIRO",null,null,null,null,null,null,"HYOGO"]
[null,null,null,null,null,null,null,"KUWAIT",null,null,null,null,null,null,"ICDAS"]
[null,null,null,null,null,null,null,"KWANGJU",null,null,null,null,null,null,"ICHTHYS"]
[null,null,null,null,null,null,null,"LA CEIBA",null,null,null,null,null,null,"IDKU"]
[null,null,null,null,null,null,null,"LA CORUNA",null,null,null,null,null,null,"IJMUIDEN"]
[null,null,null,null,null,null,null,"LA ROCHELLE",null,null,null,null,null,null,"ILIGAN"]
[null,null,null,null,null,null,null,"LABUAN",null,null,null,null,null,null,"ILO"]
[null,null,null,null,null,null,null,"LAE",null,null,null,null,null,null,"IMABARI SHIPYARD"]
[null,null,null,null,null,null,null,"LAGOS",null,null,null,null,null,null,"IMARI"]
[null,null,null,null,null,null,null,"LAHAD DATU",null,null,null,null,null,null,"IMMINGHAM"]
[null,null,null,null,null,null,null,"LAKE CHARLES",null,null,null,null,null,null,"INCHEON"]
[null,null,null,null,null,null,null,"LAMEZIA TERME",null,null,null,null,null,null,"INNOSHIMA"]
[null,null,null,null,null,null,null,"LAOAG",null,null,null,null,null,null,"IQUIQUE"]
[null,null,null,null,null,null,null,"LAPPEENRANTA",null,null,null,null,null,null,"IRAGO"]
[null,null,null,null,null,null,null,"LARNACA",null,null,null,null,null,null,"ISHIGAKI"]
[null,null,null,null,null,null,null,"LAS PALMAS",null,null,null,null,null,null,"ISHIKARI"]
[null,null,null,null,null,null,null,"LAS PALMAS - GRAN CA",null,null,null,null,null,null,"ISHINOMAKI"]
[null,null,null,null,null,null,null,"LAS PIEDRAS",null,null,null,null,null,null,"ISKENDERUN"]
[null,null,null,null,null,null,null,"LATTAKIA",null,null,null,null,null,null,"ISLE OF GRAIN"]
[null,null,null,null,null,null,null,"LAUNCESTON",null,null,null,null,null,null,"ISTANBUL"]
[null,null,null,null,null,null,null,"LE HAVRE",null,null,null,null,null,null,"ITAGUI"]
[null,null,null,null,null,null,null,"LEEDS/BRADFORD",null,null,null,null,null,null,"IWAKUNI"]
[null,null,null,null,null,null,null,"LEGASPI",null,null,null,null,null,null,"IYOMISHIMA"]
[null,null,null,null,null,null,null,"LEGAZPI",null,null,null,null,null,null,"IZMIR"]
[null,null,null,null,null,null,null,"LEIPZIG",null,null,null,null,null,null,"IZMIT"]
[null,null,null,null,null,null,null,"LERWICK",null,null,null,null,null,null,"JACKSONVILLE"]
[null,null,null,null,null,null,null,"LERWICK SUMBURGH",null,null,null,null,null,null,"JAKARTA"]
[null,null,null,null,null,null,null,"LIANYUNGANG",null,null,null,null,null,null,"JAKOBSTAD"]
[null,null,null,null,null,null,null,"LIBREVILLE",null,null,null,null,null,null,"JAPAN"]
[null,null,null,null,null,null,null,"LILLE",null,null,null,null,null,null,"JEBEL ALI"]
[null,null,null,null,null,null,null,"LIMA",null,null,null,null,null,null,"JEDDAH"]
[null,null,null,null,null,null,null,"LINZ",null,null,null,null,null,null,"JEROME"]
[null,null,null,null,null,null,null,"LISBON",null,null,null,null,null,null,"JIANGSU"]
[null,null,null,null,null,null,null,"LIUZHOU",null,null,null,null,null,null,"JIANGYIN"]
[null,null,null,null,null,null,null,"LIVERPOOL",null,null,null,null,null,null,"JIAXING"]
[null,null,null,null,null,null,null,"LJUBLIANJA",null,null,null,null,null,null,"JINGTANG"]
[null,null,null,null,null,null,null,"LJUBLJANA",null,null,null,null,null,null,"JINZHOU"]
[null,null,null,null,null,null,null,"LOME",null,null,null,null,null,null,"JOETSU"]
[null,null,null,null,null,null,null,"LONDON",null,null,null,null,null,null,"JOHOR BAHRU"]
[null,null,null,null,null,null,null,"LONDON ( STANSTED)",null,null,null,null,null,null,"JORF LASFAR"]
[null,null,null,null,null,null,null,"LONDON (CITY)",null,null,null,null,null,null,"JOSE"]
[null,null,null,null,null,null,null,"LONDON (LGW)",null,null,null,null,null,null,"JUBAIL"]
[null,null,null,null,null,null,null,"LONDON (LHR)",null,null,null,null,null,null,"KAARSTO"]
[null,null,null,null,null,null,null,"LONDON LUTON",null,null,null,null,null,null,"KAGOSHIMA"]
[null,null,null,null,null,null,null,"LONG BEACH",null,null,null,null,null,null,"KAKINADA"]
[null,null,null,null,null,null,null,"LORIENT",null,null,null,null,null,null,"KAKOGAWA"]
[null,null,null,null,null,null,null,"LOS ANGELES",null,null,null,null,null,null,"KALBUT"]
[null,null,null,null,null,null,null,"LUANDA",null,null,null,null,null,null,"KANAZAWA"]
[null,null,null,null,null,null,null,"LUCKNOW",null,null,null,null,null,null,"KANDA"]
[null,null,null,null,null,null,null,"LUDERITZ",null,null,null,null,null,null,"KANDLA"]
[null,null,null,null,null,null,null,"LULEA",null,null,null,null,null,null,"KANSAI"]
[null,null,null,null,null,null,null,"LUTON",null,null,null,null,null,null,"KAOHSIUNG"]
[null,null,null,null,null,null,null,"LUXEMBOURG",null,null,null,null,null,null,"KARACHI"]
[null,null,null,null,null,null,null,"LVOV",null,null,null,null,null,null,"KARATSU"]
[null,null,null,null,null,null,null,"LYON",null,null,null,null,null,null,"KARSTO"]
[null,null,null,null,null,null,null,"MAASTRICHT",null,null,null,null,null,null,"KASAOKA"]
[null,null,null,null,null,null,null,"MACAPA",null,null,null,null,null,null,"KASHIMA"]
[null,null,null,null,null,null,null,"MACAU",null,null,null,null,null,null,"KATAKOLAN"]
[null,null,null,null,null,null,null,"MACEIO",null,null,null,null,null,null,"KATHMANDU"]
[null,null,null,null,null,null,null,"MACKAY",null,null,null,null,null,null,"KAWAGOE"]
[null,null,null,null,null,null,null,"MACTAN CEBU",null,null,null,null,null,null,"KAWANOE"]
[null,null,null,null,null,null,null,"MADANG",null,null,null,null,null,null,"KAWASAKI"]
[null,null,null,null,null,null,null,"MADRID",null,null,null,null,null,null,"KEELUNG"]
[null,null,null,null,null,null,null,"MADURAI",null,null,null,null,null,null,"KELANG"]
[null,null,null,null,null,null,null,"MAHE",null,null,null,null,null,null,"KEPULAUAN SERIBU"]
[null,null,null,null,null,null,null,"MAJUNGA",null,null,null,null,null,null,"KERTEH"]
[null,null,null,null,null,null,null,"MAJURO",null,null,null,null,null,null,"KERTIH"]
[null,null,null,null,null,null,null,"MAKHACHKALA",null,null,null,null,null,null,"KHOR FAKKAN"]
[null,null,null,null,null,null,null,"MALABO",null,null,null,null,null,null,"KIEV"]
[null,null,null,null,null,null,null,"MALACCA",null,null,null,null,null,null,"KIIRE"]
[null,null,null,null,null,null,null,"MALAGA",null,null,null,null,null,null,"KIKUMA"]
[null,null,null,null,null,null,null,"MALE",null,null,null,null,null,null,"KIMITAT"]
[null,null,null,null,null,null,null,"MALMO",null,null,null,null,null,null,"KIMITSU"]
[null,null,null,null,null,null,null,"MALTA",null,null,null,null,null,null,"KINGSTON"]
[null,null,null,null,null,null,null,"MANADO",null,null,null,null,null,null,"KINOE"]
[null,null,null,null,null,null,null,"MANAGUA",null,null,null,null,null,null,"KINUURA"]
[null,null,null,null,null,null,null,"MANANJARY",null,null,null,null,null,null,"KISARAZU"]
[null,null,null,null,null,null,null,"MANAUS",null,null,null,null,null,null,"KLAIPEDA"]
[null,null,null,null,null,null,null,"MANCHESTER",null,null,null,null,null,null,"KLANG"]
[null,null,null,null,null,null,null,"MANGALORE",null,null,null,null,null,null,"KOBE"]
[null,null,null,null,null,null,null,"MANGALURU",null,null,null,null,null,null,"KOEJEONG"]
[null,null,null,null,null,null,null,"MANILA",null,null,null,null,null,null,"KOH SICHANG"]
[null,null,null,null,null,null,null,"MANTAS",null,null,null,null,null,null,"KOICHI"]
[null,null,null,null,null,null,null,"MANZANILLO",null,null,null,null,null,null,"KOJE"]
[null,null,null,null,null,null,null,"MAPUTO",null,null,null,null,null,null,"KOKKOLA"]
[null,null,null,null,null,null,null,"MAR DEL PLATA",null,null,null,null,null,null,"KOKURA"]
[null,null,null,null,null,null,null,"MARACAIBO",null,null,null,null,null,null,"KOLHAPUR"]
[null,null,null,null,null,null,null,"MARGHARITA ISL",null,null,null,null,null,null,"KOLKATA"]
[null,null,null,null,null,null,null,"MARIEHAMN",null,null,null,null,null,null,"KOMATSUJIMA"]
[null,null,null,null,null,null,null,"MAROOCHYDORE",null,null,null,null,null,null,"KOMATSUSHIMA"]
[null,null,null,null,null,null,null,"MARSA EL BREGA",null,null,null,null,null,null,"KOPER"]
[null,null,null,null,null,null,null,"MARSEILLE",null,null,null,null,null,null,"KOTA KINABALU"]
[null,null,null,null,null,null,null,"MARSEILLES",null,null,null,null,null,null,"KOTKA"]
[null,null,null,null,null,null,null,"MARSHALL",null,null,null,null,null,null,"KOYO"]
[null,null,null,null,null,null,null,"MASAMBA",null,null,null,null,null,null,"KRISHNAPATNAM"]
[null,null,null,null,null,null,null,"MASIRAH",null,null,null,null,null,null,"KROMAN"]
[null,null,null,null,null,null,null,"MASSAWA",null,null,null,null,null,null,"KUANTAN"]
[null,null,null,null,null,null,null,"MATADI",null,null,null,null,null,null,"KUCHING"]
[null,null,null,null,null,null,null,"MATSUYAMA",null,null,null,null,null,null,"KUDAMATSU"]
[null,null,null,null,null,null,null,"MAURITIUS",null,null,null,null,null,null,"KUNSAN"]
[null,null,null,null,null,null,null,"MAZATLAN",null,null,null,null,null,null,"KURE"]
[null,null,null,null,null,null,null,"MEDAN",null,null,null,null,null,null,"KUWAIT"]
[null,null,null,null,null,null,null,"MELBOURNE",null,null,null,null,null,null,"KWANGYANG"]
[null,null,null,null,null,null,null,"MELILLA",null,null,null,null,null,null,"KWINANA"]
[null,null,null,null,null,null,null,"MEMPHIS",null,null,null,null,null,null,"LA CORUNA"]
[null,null,null,null,null,null,null,"MENORCA",null,null,null,null,null,null,"LA GUAIRA"]
[null,null,null,null,null,null,null,"MERIDA",null,null,null,null,null,null,"LA HAVRE"]
[null,null,null,null,null,null,null,"MEXICO CITY",null,null,null,null,null,null,"LA LIBERTAD"]
[null,null,null,null,null,null,null,"MIAMI",null,null,null,null,null,null,"LA REUNION"]
[null,null,null,null,null,null,null,"MILAAN (LINATE)",null,null,null,null,null,null,"LA SKHIRRA"]
[null,null,null,null,null,null,null,"MILAAN (MALPENSA)",null,null,null,null,null,null,"LA SPEZIA"]
[null,null,null,null,null,null,null,"MILAN",null,null,null,null,null,null,"LABUAN"]
[null,null,null,null,null,null,null,"MINATITLAN",null,null,null,null,null,null,"LAEM CHABANG"]
[null,null,null,null,null,null,null,"MINERALNYE VODY",null,null,null,null,null,null,"LAGOS"]
[null,null,null,null,null,null,null,"MINSK",null,null,null,null,null,null,"LAKE CHARLES"]
[null,null,null,null,null,null,null,"MIRI",null,null,null,null,null,null,"LAMPUNG"]
[null,null,null,null,null,null,null,"MISAWA",null,null,null,null,null,null,"LANGKAWI"]
[null,null,null,null,null,null,null,"MISURATA",null,null,null,null,null,null,"LANQIAO"]
[null,null,null,null,null,null,null,"MIYAZAKI",null,null,null,null,null,null,"LANSHAN"]
[null,null,null,null,null,null,null,"MO I RANA",null,null,null,null,null,null,"LAPPEENRANTA"]
[null,null,null,null,null,null,null,"MOBILE",null,null,null,null,null,null,"LAS PALMAS"]
[null,null,null,null,null,null,null,"MOGADISHU",null,null,null,null,null,null,"LAUNCESTON"]
[null,null,null,null,null,null,null,"MOKPO",null,null,null,null,null,null,"LAVERA"]
[null,null,null,null,null,null,null,"MOLDE",null,null,null,null,null,null,"LAZARO CARDENAS"]
[null,null,null,null,null,null,null,"MOMBASA",null,null,null,null,null,null,"LE HAVRE"]
[null,null,null,null,null,null,null,"MONROVIA",null,null,null,null,null,null,"LEAM CHAMBANG"]
[null,null,null,null,null,null,null,"MONT JOLI,CANADA",null,null,null,null,null,null,"LIANYUNGANG"]
[null,null,null,null,null,null,null,"MONTEGO BAY",null,null,null,null,null,null,"LIMASSOL"]
[null,null,null,null,null,null,null,"MONTEREY CA",null,null,null,null,null,null,"LINYI"]
[null,null,null,null,null,null,null,"MONTERREY",null,null,null,null,null,null,"LISBON"]
[null,null,null,null,null,null,null,"MONTEVIDEO",null,null,null,null,null,null,"LIVERPOOL"]
[null,null,null,null,null,null,null,"MONTPELLIER",null,null,null,null,null,null,"LIVORNO"]
[null,null,null,null,null,null,null,"MONTREAL",null,null,null,null,null,null,"LLYICHEVSK"]
[null,null,null,null,null,null,null,"MONTREAL (DORVAL)",null,null,null,null,null,null,"LOME"]
[null,null,null,null,null,null,null,"MONTREAL (MIRABEL)",null,null,null,null,null,null,"LONDON"]
[null,null,null,null,null,null,null,"MONTREAL/DORVAL",null,null,null,null,null,null,"LONG BEACH"]
[null,null,null,null,null,null,null,"MORONI",null,null,null,null,null,null,"LONGJIANG"]
[null,null,null,null,null,null,null,"MOSCOW",null,null,null,null,null,null,"LONGKOU"]
[null,null,null,null,null,null,null,"MOSCOW (SHEREMETYEVO",null,null,null,null,null,null,"LONGVIEW"]
[null,null,null,null,null,null,null,"MOSCOW, VNUKOVO",null,null,null,null,null,null,"LOOP"]
[null,null,null,null,null,null,null,"MOUNT PLEASANT",null,null,null,null,null,null,"LOS ANGELES"]
[null,null,null,null,null,null,null,"MTWARA",null,null,null,null,null,null,"LOUIS"]
[null,null,null,null,null,null,null,"MUAN",null,null,null,null,null,null,"LUANDA"]
[null,null,null,null,null,null,null,"MUMBAI",null,null,null,null,null,null,"LUHUASHAN"]
[null,null,null,null,null,null,null,"MUNICH",null,null,null,null,null,null,"LUMUT"]
[null,null,null,null,null,null,null,"MUNSTER",null,null,null,null,null,null,"LYTTELTON"]
[null,null,null,null,null,null,null,"MURCIA",null,null,null,null,null,null,"MABINI"]
[null,null,null,null,null,null,null,"MURMANSK",null,null,null,null,null,null,"MACAPA"]
[null,null,null,null,null,null,null,"MUSCAT",null,null,null,null,null,null,"MACKAY"]
[null,null,null,null,null,null,null,"NABEREVNYE",null,null,null,null,null,null,"MADRE DE DEUS"]
[null,null,null,null,null,null,null,"NABEREZHNYE",null,null,null,null,null,null,"MAILIAO"]
[null,null,null,null,null,null,null,"NAGASAKI",null,null,null,null,null,null,"MAIZURU"]
[null,null,null,null,null,null,null,"NAGOYA",null,null,null,null,null,null,"MALACCA"]
[null,null,null,null,null,null,null,"NAGPUR",null,null,null,null,null,null,"MALAGA"]
[null,null,null,null,null,null,null,"NAIA",null,null,null,null,null,null,"MALE"]
[null,null,null,null,null,null,null,"NAIA AIRPORT",null,null,null,null,null,null,"MALONGO"]
[null,null,null,null,null,null,null,"NAIN",null,null,null,null,null,null,"MALTA"]
[null,null,null,null,null,null,null,"NAIROBI",null,null,null,null,null,null,"MAMONAL"]
[null,null,null,null,null,null,null,"NAMIBE",null,null,null,null,null,null,"MANGALORE"]
[null,null,null,null,null,null,null,"NANDI",null,null,null,null,null,null,"MANILA"]
[null,null,null,null,null,null,null,"NANJING",null,null,null,null,null,null,"MANTA"]
[null,null,null,null,null,null,null,"NANTES",null,null,null,null,null,null,"MANZANILLO"]
[null,null,null,null,null,null,null,"NAPIER/HASTINGS",null,null,null,null,null,null,"MAP TA PHUT"]
[null,null,null,null,null,null,null,"NAPLES",null,null,null,null,null,null,"MAPUTO"]
[null,null,null,null,null,null,null,"NARITA",null,null,null,null,null,null,"MARACAIBO"]
[null,null,null,null,null,null,null,"NARVIK",null,null,null,null,null,null,"MARCUS HOOK"]
[null,null,null,null,null,null,null,"NASIK",null,null,null,null,null,null,"MARIVELES BATAAN"]
[null,null,null,null,null,null,null,"NASSAU",null,null,null,null,null,null,"MARMARA EREGLISI"]
[null,null,null,null,null,null,null,"NATAL",null,null,null,null,null,null,"MARSDEN POINT"]
[null,null,null,null,null,null,null,"NAURU",null,null,null,null,null,null,"MARSEILLE-FOS"]
[null,null,null,null,null,null,null,"NAVEGANTES",null,null,null,null,null,null,"MARTAS"]
[null,null,null,null,null,null,null,"NECOCHEA",null,null,null,null,null,null,"MASAN"]
[null,null,null,null,null,null,null,"NELSON",null,null,null,null,null,null,"MATARANI"]
[null,null,null,null,null,null,null,"NEW BERN",null,null,null,null,null,null,"MATSUURA"]
[null,null,null,null,null,null,null,"NEW DELHI",null,null,null,null,null,null,"MAZATLAN"]
[null,null,null,null,null,null,null,"NEW JERSY",null,null,null,null,null,null,"MEJILLONES"]
[null,null,null,null,null,null,null,"NEW ORLEANS",null,null,null,null,null,null,"MELAKA"]
[null,null,null,null,null,null,null,"NEW PLYMOUTH",null,null,null,null,null,null,"MELBOURNE"]
[null,null,null,null,null,null,null,"NEW YORK",null,null,null,null,null,null,"MERSIN"]
[null,null,null,null,null,null,null,"NEW YORK (JFK)",null,null,null,null,null,null,"MESAIEED"]
[null,null,null,null,null,null,null,"NEW YORK (NEWARK)",null,null,null,null,null,null,"MEXICO"]
[null,null,null,null,null,null,null,"NEWCASTLE",null,null,null,null,null,null,"MIAMI"]
[null,null,null,null,null,null,null,"NEWCASTLE AU",null,null,null,null,null,null,"MILAZZO"]
[null,null,null,null,null,null,null,"NEWQUAY",null,null,null,null,null,null,"MILFORD HAVEN"]
[null,null,null,null,null,null,null,"NICE",null,null,null,null,null,null,"MINA AL AHMADI"]
[null,null,null,null,null,null,null,"NIMES",null,null,null,null,null,null,"MINA AL FAHAL"]
[null,null,null,null,null,null,null,"NINGBO",null,null,null,null,null,null,"MINA SAQR"]
[null,null,null,null,null,null,null,"NINOY AQUINO",null,null,null,null,null,null,"MIRI"]
[null,null,null,null,null,null,null,"NIS",null,null,null,null,null,null,"MISHIMA-KAWANOE"]
[null,null,null,null,null,null,null,"NIUAFO'OU",null,null,null,null,null,null,"MISSISIPPI"]
[null,null,null,null,null,null,null,"NIZHNY NOVGOROD",null,null,null,null,null,null,"MISUMI"]
[null,null,null,null,null,null,null,"NORFOLK",null,null,null,null,null,null,"MIYAKOJIMA"]
[null,null,null,null,null,null,null,"NORRKOPING",null,null,null,null,null,null,"MIZUSHIMA"]
[null,null,null,null,null,null,null,"NORTH BEND  OR.",null,null,null,null,null,null,"MOBILE ALABAMA"]
[null,null,null,null,null,null,null,"NORWICH",null,null,null,null,null,null,"MOHAMMEDIA"]
[null,null,null,null,null,null,null,"NOUADHIBOU",null,null,null,null,null,null,"MOHESHAKLI"]
[null,null,null,null,null,null,null,"NOUAKCHOTT",null,null,null,null,null,null,"MOJI"]
[null,null,null,null,null,null,null,"NOUMEA",null,null,null,null,null,null,"MOKPO"]
[null,null,null,null,null,null,null,"NUREMBERG",null,null,null,null,null,null,"MOLLENDO"]
[null,null,null,null,null,null,null,"OAKLAND CA",null,null,null,null,null,null,"MOMBASA"]
[null,null,null,null,null,null,null,"ODENSE",null,null,null,null,null,null,"MONACO"]
[null,null,null,null,null,null,null,"ODESSA",null,null,null,null,null,null,"MONEY POINT"]
[null,null,null,null,null,null,null,"OITA",null,null,null,null,null,null,"MONGSTAD"]
[null,null,null,null,null,null,null,"OKAYAMA",null,null,null,null,null,null,"MONTEVIDEO"]
[null,null,null,null,null,null,null,"OKINAWA",null,null,null,null,null,null,"MONTOIR"]
[null,null,null,null,null,null,null,"OLBIA  SARDINIA",null,null,null,null,null,null,"MONTREAL"]
[null,null,null,null,null,null,null,"OLONGAPO",null,null,null,null,null,null,"MORMUGAO"]
[null,null,null,null,null,null,null,"OMSK",null,null,null,null,null,null,"MOSSEL BAY"]
[null,null,null,null,null,null,null,"ONTARIO",null,null,null,null,null,null,"MUGARDOS"]
[null,null,null,null,null,null,null,"OPORTO",null,null,null,null,null,null,"MUMBAI"]
[null,null,null,null,null,null,null,"ORAN",null,null,null,null,null,null,"MUNDRA"]
[null,null,null,null,null,null,null,"OREBRO",null,null,null,null,null,null,"MURMANSK"]
[null,null,null,null,null,null,null,"ORKNEY",null,null,null,null,null,null,"MURORAN"]
[null,null,null,null,null,null,null,"ORLANDO",null,null,null,null,null,null,"MUSCAT"]
[null,null,null,null,null,null,null,"ORNSKOLDVIK",null,null,null,null,null,null,"MYRTLE GROVE"]
[null,null,null,null,null,null,null,"OSAKA",null,null,null,null,null,null,"NAGASAKI"]
[null,null,null,null,null,null,null,"OSAKA (ITM)",null,null,null,null,null,null,"NAGOYA"]
[null,null,null,null,null,null,null,"OSAKA (KIX)",null,null,null,null,null,null,"NAHA"]
[null,null,null,null,null,null,null,"OSIJEK",null,null,null,null,null,null,"NAKANOSEKI"]
[null,null,null,null,null,null,null,"OSLO",null,null,null,null,null,null,"NAKHODKA"]
[null,null,null,null,null,null,null,"OSLO (TRF)",null,null,null,null,null,null,"NAMIKATA"]
[null,null,null,null,null,null,null,"OSTEND",null,null,null,null,null,null,"NANAO"]
[null,null,null,null,null,null,null,"OSTERSUND",null,null,null,null,null,null,"NANJING"]
[null,null,null,null,null,null,null,"OTTAWA",null,null,null,null,null,null,"NANNING"]
[null,null,null,null,null,null,null,"OUJDA",null,null,null,null,null,null,"NANSHA"]
[null,null,null,null,null,null,null,"OULU",null,null,null,null,null,null,"NANTONG"]
[null,null,null,null,null,null,null,"OWATONNA",null,null,null,null,null,null,"NAOETSU"]
[null,null,null,null,null,null,null,"OWENDO",null,null,null,null,null,null,"NAPA NAPA"]
[null,null,null,null,null,null,null,"PAGO PAGO",null,null,null,null,null,null,"NAPIER"]
[null,null,null,null,null,null,null,"PALANGA",null,null,null,null,null,null,"NAPLES"]
[null,null,null,null,null,null,null,"PALEMBANG",null,null,null,null,null,null,"NARASHINO"]
[null,null,null,null,null,null,null,"PALERMO",null,null,null,null,null,null,"NARITA"]
[null,null,null,null,null,null,null,"PALMA DE MALLORCA",null,null,null,null,null,null,"NARVIK"]
[null,null,null,null,null,null,null,"PALMA DE MALLORCA, S",null,null,null,null,null,null,"NASSAU"]
[null,null,null,null,null,null,null,"PANAMA",null,null,null,null,null,null,"NAVLAKHI"]
[null,null,null,null,null,null,null,"PANAMA CITY",null,null,null,null,null,null,"NEGISHI"]
[null,null,null,null,null,null,null,"PANAMA CITY/BALBOA",null,null,null,null,null,null,"NELSON"]
[null,null,null,null,null,null,null,"PANGKALPINANG",null,null,null,null,null,null,"NEMRUT"]
[null,null,null,null,null,null,null,"PANTNAGAR",null,null,null,null,null,null,"NEW CASTLE"]
[null,null,null,null,null,null,null,"PAPEETE",null,null,null,null,null,null,"NEW HAVEN"]
[null,null,null,null,null,null,null,"PAPHOS",null,null,null,null,null,null,"NEW JERSEY"]
[null,null,null,null,null,null,null,"PARAMARIBO",null,null,null,null,null,null,"NEW ORLEANS"]
[null,null,null,null,null,null,null,"PARIS",null,null,null,null,null,null,"NEW PLYMOUTH"]
[null,null,null,null,null,null,null,"PARIS (CDG)",null,null,null,null,null,null,"NEW WESTMINSTER"]
[null,null,null,null,null,null,null,"PARIS (ORLY)",null,null,null,null,null,null,"NEW YORK"]
[null,null,null,null,null,null,null,"PASCAGOULA",null,null,null,null,null,null,"NEWARK"]
[null,null,null,null,null,null,null,"PASNI",null,null,null,null,null,null,"NEWPORT NEWS"]
[null,null,null,null,null,null,null,"PATNA",null,null,null,null,null,null,"NHAVA SHEVA"]
[null,null,null,null,null,null,null,"PEMBA",null,null,null,null,null,null,"NIIGATA"]
[null,null,null,null,null,null,null,"PENANG",null,null,null,null,null,null,"NIIHAMA"]
[null,null,null,null,null,null,null,"PENSACOLA FL",null,null,null,null,null,null,"NINGBO"]
[null,null,null,null,null,null,null,"PENZA",null,null,null,null,null,null,"NIPAH"]
[null,null,null,null,null,null,null,"PERTH",null,null,null,null,null,null,"NOLA"]
[null,null,null,null,null,null,null,"PETROPAVLOVSK",null,null,null,null,null,null,"NORDENHAM"]
[null,null,null,null,null,null,null,"PHILADELPHIA",null,null,null,null,null,null,"NORFOLK"]
[null,null,null,null,null,null,null,"PHILIPPINES",null,null,null,null,null,null,"NOSHIRO"]
[null,null,null,null,null,null,null,"PHNOM PHEN",null,null,null,null,null,null,"NOVOSIBIRSK"]
[null,null,null,null,null,null,null,"PHOENIX",null,null,null,null,null,null,"NUEVA PALMIRA"]
[null,null,null,null,null,null,null,"PHUKET",null,null,null,null,null,null,"NYBORG"]
[null,null,null,null,null,null,null,"PIETERMARITZBURG",null,null,null,null,null,null,"OAKLAND"]
[null,null,null,null,null,null,null,"PISA",null,null,null,null,null,null,"OCHO RIOS"]
[null,null,null,null,null,null,null,"PIURA",null,null,null,null,null,null,"ODESSA"]
[null,null,null,null,null,null,null,"PLYMOUTH",null,null,null,null,null,null,"OFF GALLE"]
[null,null,null,null,null,null,null,"PODGORICA",null,null,null,null,null,null,"OGISHIMA"]
[null,null,null,null,null,null,null,"POINTE NOIRE",null,null,null,null,null,null,"OITA"]
[null,null,null,null,null,null,null,"PONAPE",null,null,null,null,null,null,"OKINAWA"]
[null,null,null,null,null,null,null,"PONDICHERRY",null,null,null,null,null,null,"OKPO"]
[null,null,null,null,null,null,null,"PONTA DELGADA",null,null,null,null,null,null,"OLONGAPO"]
[null,null,null,null,null,null,null,"PORBANDAR",null,null,null,null,null,null,"OMAEZAKI"]
[null,null,null,null,null,null,null,"PORI",null,null,null,null,null,null,"OMOA"]
[null,null,null,null,null,null,null,"PORI, FINLAND",null,null,null,null,null,null,"ONAHAMA"]
[null,null,null,null,null,null,null,"PORT AU PRINCE",null,null,null,null,null,null,"ONISHI"]
[null,null,null,null,null,null,null,"PORT BLAIR",null,null,null,null,null,null,"ONSAN"]
[null,null,null,null,null,null,null,"PORT ELIZABETH",null,null,null,null,null,null,"ORTONA"]
[null,null,null,null,null,null,null,"PORT GENTIL",null,null,null,null,null,null,"OSAKA"]
[null,null,null,null,null,null,null,"PORT HARCOURT",null,null,null,null,null,null,"OSLO"]
[null,null,null,null,null,null,null,"PORT HEDLAND",null,null,null,null,null,null,"PAJARITOS"]
[null,null,null,null,null,null,null,"PORT LINCOLN",null,null,null,null,null,null,"PALAU ISLAND"]
[null,null,null,null,null,null,null,"PORT MACQUARIE",null,null,null,null,null,null,"PALDISKI"]
[null,null,null,null,null,null,null,"PORT MORESBY",null,null,null,null,null,null,"PANCHKULA"]
[null,null,null,null,null,null,null,"PORT OF SPAIN",null,null,null,null,null,null,"PANIGAGLIA"]
[null,null,null,null,null,null,null,"PORT SUDAN",null,null,null,null,null,null,"PARADIP"]
[null,null,null,null,null,null,null,"PORT VILA",null,null,null,null,null,null,"PARANAGUA"]
[null,null,null,null,null,null,null,"PORTLAND  VIC.",null,null,null,null,null,null,"PARIS"]
[null,null,null,null,null,null,null,"PORTLAND INTL.",null,null,null,null,null,null,"PASCAGOULA MISSISSIPPI"]
[null,null,null,null,null,null,null,"PORTLAND ME",null,null,null,null,null,null,"PECEM"]
[null,null,null,null,null,null,null,"PORTLAND OR",null,null,null,null,null,null,"PEMBROKE"]
[null,null,null,null,null,null,null,"PORTO ALEGRE",null,null,null,null,null,null,"PENANG"]
[null,null,null,null,null,null,null,"PORTO AMBOIM",null,null,null,null,null,null,"PERSIAN GULF"]
[null,null,null,null,null,null,null,"POZA RICA",null,null,null,null,null,null,"PERTIGALETE"]
[null,null,null,null,null,null,null,"POZNAN",null,null,null,null,null,null,"PHILADELPHIA"]
[null,null,null,null,null,null,null,"PRAGUE",null,null,null,null,null,null,"PHU MY"]
[null,null,null,null,null,null,null,"PRAIA",null,null,null,null,null,null,"PHUKET"]
[null,null,null,null,null,null,null,"PRESTWICK",null,null,null,null,null,null,"PIOMBINO"]
[null,null,null,null,null,null,null,"PRINCE RUPERT",null,null,null,null,null,null,"PIPAVAV"]
[null,null,null,null,null,null,null,"PROSERPINE",null,null,null,null,null,null,"PIRAEUS"]
[null,null,null,null,null,null,null,"PROVIDENCE",null,null,null,null,null,null,"PISCO"]
[null,null,null,null,null,null,null,"PUERTO CABELLO",null,null,null,null,null,null,"POHANG"]
[null,null,null,null,null,null,null,"PUERTO CABEZAS",null,null,null,null,null,null,"POINT COMFORT"]
[null,null,null,null,null,null,null,"PUERTO ESCONDIDO",null,null,null,null,null,null,"POINT FORTIN"]
[null,null,null,null,null,null,null,"PUERTO LIMON",null,null,null,null,null,null,"POINT LISAS"]
[null,null,null,null,null,null,null,"PUERTO MONTT",null,null,null,null,null,null,"POINT TUPPER"]
[null,null,null,null,null,null,null,"PUERTO ORDAZ",null,null,null,null,null,null,"POINTE NOIRE"]
[null,null,null,null,null,null,null,"PUERTO PLATA",null,null,null,null,null,null,"PONTA DA MADEIRA"]
[null,null,null,null,null,null,null,"PUERTO PRINCESA",null,null,null,null,null,null,"PONTA DELGADA"]
[null,null,null,null,null,null,null,"PUERTO VALLARTA",null,null,null,null,null,null,"PORI"]
[null,null,null,null,null,null,null,"PULA",null,null,null,null,null,null,"PORT"]
[null,null,null,null,null,null,null,"PUNE",null,null,null,null,null,null,"PORT ALFRED"]
[null,null,null,null,null,null,null,"PUNTA ARENAS",null,null,null,null,null,null,"PORT ANGELES"]
[null,null,null,null,null,null,null,"PUSAN",null,null,null,null,null,null,"PORT ARTHUR"]
[null,null,null,null,null,null,null,"PYONG YANG",null,null,null,null,null,null,"PORT BONYTHON"]
[null,null,null,null,null,null,null,"QINGDAO",null,null,null,null,null,null,"PORT BURY"]
[null,null,null,null,null,null,null,"QINGDAO",null,null,null,null,null,null,"PORT CANAVERAL"]
[null,null,null,null,null,null,null,"QUANZHOU",null,null,null,null,null,null,"PORT CHALMERS"]
[null,null,null,null,null,null,null,"QUEBEC",null,null,null,null,null,null,"PORT DAMPIER"]
[null,null,null,null,null,null,null,"QUEENSTOWN",null,null,null,null,null,null,"PORT DICKSON"]
[null,null,null,null,null,null,null,"QUITO",null,null,null,null,null,null,"PORT ELIZABETH"]
[null,null,null,null,null,null,null,"RABAT",null,null,null,null,null,null,"PORT EREN"]
[null,null,null,null,null,null,null,"RABAUL",null,null,null,null,null,null,"PORT EVERGLADES"]
[null,null,null,null,null,null,null,"RAIPUR",null,null,null,null,null,null,"PORT HEDLAND"]
[null,null,null,null,null,null,null,"RAJAHMUNDRY",null,null,null,null,null,null,"PORT HUENEME"]
[null,null,null,null,null,null,null,"RAJKOT",null,null,null,null,null,null,"PORT KAMSAR"]
[null,null,null,null,null,null,null,"RANCHI",null,null,null,null,null,null,"PORT KEMBLA"]
[null,null,null,null,null,null,null,"RAROTONGA",null,null,null,null,null,null,"PORT KLANG"]
[null,null,null,null,null,null,null,"RAS AL KHAIMAH",null,null,null,null,null,null,"PORT LOUIS"]
[null,null,null,null,null,null,null,"RATNAGIRI",null,null,null,null,null,null,"PORT MORESBY"]
[null,null,null,null,null,null,null,"REBIECHOWO",null,null,null,null,null,null,"PORT MUHAMMAD BIN QASIM"]
[null,null,null,null,null,null,null,"RECIFE",null,null,null,null,null,null,"PORT NELSON"]
[null,null,null,null,null,null,null,"REGGIO CALABRIA",null,null,null,null,null,null,"PORT NEWARK"]
[null,null,null,null,null,null,null,"REKJAVIK",null,null,null,null,null,null,"PORT OF ELIZABETH"]
[null,null,null,null,null,null,null,"REKYJAVIK",null,null,null,null,null,null,"PORT OF ESPERANCE"]
[null,null,null,null,null,null,null,"RENO",null,null,null,null,null,null,"PORT OF HONG KONG"]
[null,null,null,null,null,null,null,"REUNION ISLAND",null,null,null,null,null,null,"PORT OF LEITH"]
[null,null,null,null,null,null,null,"RHODES",null,null,null,null,null,null,"PORT OF SPAIN"]
[null,null,null,null,null,null,null,"RICHARDS BAY",null,null,null,null,null,null,"PORT SAID"]
[null,null,null,null,null,null,null,"RICHMOND",null,null,null,null,null,null,"PORT SUEZ"]
[null,null,null,null,null,null,null,"RIGA",null,null,null,null,null,null,"PORT SULTAN QABOOS"]
[null,null,null,null,null,null,null,"RIJEKA",null,null,null,null,null,null,"PORT TALBOT"]
[null,null,null,null,null,null,null,"RIMINI",null,null,null,null,null,null,"PORT VILA"]
[null,null,null,null,null,null,null,"RIO DE JANEIRO",null,null,null,null,null,null,"PORT WALCOTT"]
[null,null,null,null,null,null,null,"RIO DE JANIERO",null,null,null,null,null,null,"PORTLAND"]
[null,null,null,null,null,null,null,"RIO GALLEGOS",null,null,null,null,null,null,"PORTLAND, MAINE"]
[null,null,null,null,null,null,null,"RIO GRANDE DO SUL",null,null,null,null,null,null,"PORTLAND, OREGON"]
[null,null,null,null,null,null,null,"RIYADH",null,null,null,null,null,null,"PORTO ALEGRE"]
[null,null,null,null,null,null,null,"ROBERTS INTL",null,null,null,null,null,null,"PORVOO"]
[null,null,null,null,null,null,null,"ROCKHAMPTON",null,null,null,null,null,null,"POZOS COLORADOS"]
[null,null,null,null,null,null,null,"ROISSY",null,null,null,null,null,null,"PRAIA"]
[null,null,null,null,null,null,null,"ROME",null,null,null,null,null,null,"PRIGORODNOYE"]
[null,null,null,null,null,null,null,"ROME FIUMICINO",null,null,null,null,null,null,"PRIMORSK"]
[null,null,null,null,null,null,null,"ROME GUIANA",null,null,null,null,null,null,"PRINCE RUPERT"]
[null,null,null,null,null,null,null,"RONNEBY",null,null,null,null,null,null,"PROVIDENCE"]
[null,null,null,null,null,null,null,"ROSARIO",null,null,null,null,null,null,"PUERTO CABELLO"]
[null,null,null,null,null,null,null,"ROSTOV",null,null,null,null,null,null,"PUERTO CALDERA"]
[null,null,null,null,null,null,null,"ROTTERDAM",null,null,null,null,null,null,"PUERTO LA CRUZ"]
[null,null,null,null,null,null,null,"ROTTERDAM AIRPORT",null,null,null,null,null,null,"PUERTO MOIN"]
[null,null,null,null,null,null,null,"ROXAS",null,null,null,null,null,null,"PUERTO NUEVA"]
[null,null,null,null,null,null,null,"RZESZOW",null,null,null,null,null,null,"PUERTO QUETZAL"]
[null,null,null,null,null,null,null,"SAINT JOHN, NB, CANA",null,null,null,null,null,null,"PUERTO RICO"]
[null,null,null,null,null,null,null,"SAIPAN",null,null,null,null,null,null,"PULAU LAUT"]
[null,null,null,null,null,null,null,"SALALAH",null,null,null,null,null,null,"PUNTA ARENAS"]
[null,null,null,null,null,null,null,"SALEM",null,null,null,null,null,null,"PUNTA CHUNGO"]
[null,null,null,null,null,null,null,"SALISBURY",null,null,null,null,null,null,"PUNTA PADRONES"]
[null,null,null,null,null,null,null,"SALVADOR",null,null,null,null,null,null,"PYEONGTAEK"]
[null,null,null,null,null,null,null,"SALZBURG",null,null,null,null,null,null,"PYRENEES VENTURE"]
[null,null,null,null,null,null,null,"SAMARA",null,null,null,null,null,null,"QALHAT"]
[null,null,null,null,null,null,null,"SAN DIEGO",null,null,null,null,null,null,"QATAR"]
[null,null,null,null,null,null,null,"SAN FRANCISCO",null,null,null,null,null,null,"QIDONG"]
[null,null,null,null,null,null,null,"SAN JOSE",null,null,null,null,null,null,"QINGDAO"]
[null,null,null,null,null,null,null,"SAN JOSE, COSTA RICA",null,null,null,null,null,null,"QINHUANGDAO"]
[null,null,null,null,null,null,null,"SAN JUAN",null,null,null,null,null,null,"QINZHOU"]
[null,null,null,null,null,null,null,"SAN JUAN PR",null,null,null,null,null,null,"QUANZHOU"]
[null,null,null,null,null,null,null,"SAN PEDRO",null,null,null,null,null,null,"QUEZON"]
[null,null,null,null,null,null,null,"SAN PEDRO SULA",null,null,null,null,null,null,"QUINCY"]
[null,null,null,null,null,null,null,"SAN SALVADOR",null,null,null,null,null,null,"QUINTERO"]
[null,null,null,null,null,null,null,"SAN SEBASTIAN",null,null,null,null,null,null,"RAOPING"]
[null,null,null,null,null,null,null,"SANAA",null,null,null,null,null,null,"RAS AL KHAFJI"]
[null,null,null,null,null,null,null,"SANDAKAN",null,null,null,null,null,null,"RAS LAFFAN"]
[null,null,null,null,null,null,null,"SANTA FE",null,null,null,null,null,null,"RAS TANURA"]
[null,null,null,null,null,null,null,"SANTA MARTA",null,null,null,null,null,null,"RAVENNA"]
[null,null,null,null,null,null,null,"SANTANDER",null,null,null,null,null,null,"RAYONG"]
[null,null,null,null,null,null,null,"SANTIAGO",null,null,null,null,null,null,"RECALADA"]
[null,null,null,null,null,null,null,"SANTIAGO DE CHILE",null,null,null,null,null,null,"REDCAR"]
[null,null,null,null,null,null,null,"SANTIAGO DE COMPOSTE",null,null,null,null,null,null,"REIHOKU"]
[null,null,null,null,null,null,null,"SANTIAGO DE CUBA",null,null,null,null,null,null,"REVITHOUSSA"]
[null,null,null,null,null,null,null,"SANTO DOMINGO",null,null,null,null,null,null,"RICHARDS BAY"]
[null,null,null,null,null,null,null,"SANYA",null,null,null,null,null,null,"RICHMOND"]
[null,null,null,null,null,null,null,"SAO LUIS",null,null,null,null,null,null,"RIGA"]
[null,null,null,null,null,null,null,"SAO PAULO",null,null,null,null,null,null,"RIO HAINA"]
[null,null,null,null,null,null,null,"SAO PAULO(GUARULHOS)",null,null,null,null,null,null,"RIZHAO"]
[null,null,null,null,null,null,null,"SAO TOME",null,null,null,null,null,null,"ROBERTS BANK"]
[null,null,null,null,null,null,null,"SAO VICENTE",null,null,null,null,null,null,"ROSTOCK"]
[null,null,null,null,null,null,null,"SAPPORO",null,null,null,null,null,null,"ROTTERDAM"]
[null,null,null,null,null,null,null,"SARAJEVO, BOSNIA",null,null,null,null,null,null,"ROUEN"]
[null,null,null,null,null,null,null,"SAVANNAH GA",null,null,null,null,null,null,"ROVIGO"]
[null,null,null,null,null,null,null,"SAVONLINNA",null,null,null,null,null,null,"ROYAL PORTBURY"]
[null,null,null,null,null,null,null,"SEATTLE",null,null,null,null,null,null,"RUGAO"]
[null,null,null,null,null,null,null,"SEMARANG",null,null,null,null,null,null,"RUWAIS"]
[null,null,null,null,null,null,null,"SENDAI",null,null,null,null,null,null,"SABINE PASS"]
[null,null,null,null,null,null,null,"SENIPAH",null,null,null,null,null,null,"SAGUNTO"]
[null,null,null,null,null,null,null,"SEOUL",null,null,null,null,null,null,"SAINT NAZAIRE"]
[null,null,null,null,null,null,null,"SEOUL (GIMPO)",null,null,null,null,null,null,"SAKAI"]
[null,null,null,null,null,null,null,"SEOUL (INCHON)",null,null,null,null,null,null,"SAKAIDE"]
[null,null,null,null,null,null,null,"SEPT ILES",null,null,null,null,null,null,"SAKATA"]
[null,null,null,null,null,null,null,"SEVILLA",null,null,null,null,null,null,"SALALAH"]
[null,null,null,null,null,null,null,"SEVILLE",null,null,null,null,null,null,"SALDANHA BAY"]
[null,null,null,null,null,null,null,"SFAX",null,null,null,null,null,null,"SAMCHEOK"]
[null,null,null,null,null,null,null,"SHANGHAI",null,null,null,null,null,null,"SAMCHEON-PO"]
[null,null,null,null,null,null,null,"SHANGHAI PU DONG APT",null,null,null,null,null,null,"SAMSUN"]
[null,null,null,null,null,null,null,"SHANNON",null,null,null,null,null,null,"SAN ANTONIO"]
[null,null,null,null,null,null,null,"SHARJAH",null,null,null,null,null,null,"SAN CIPRIAN"]
[null,null,null,null,null,null,null,"SHENYANG",null,null,null,null,null,null,"SAN DIEGO"]
[null,null,null,null,null,null,null,"SHENZHEN",null,null,null,null,null,null,"SAN FRANCISCO"]
[null,null,null,null,null,null,null,"SHETLAND ISLANDS",null,null,null,null,null,null,"SAN JOSE"]
[null,null,null,null,null,null,null,"SILCHAR",null,null,null,null,null,null,"SAN JOSE COSTA RICA"]
[null,null,null,null,null,null,null,"SIMFEROPOL",null,null,null,null,null,null,"SAN JUAN"]
[null,null,null,null,null,null,null,"SINGAPORE",null,null,null,null,null,null,"SAN LORENZO"]
[null,null,null,null,null,null,null,"SINGAPORE CHANGI",null,null,null,null,null,null,"SAN LUIS"]
[null,null,null,null,null,null,null,"SINOE",null,null,null,null,null,null,"SAN NICOLAS"]
[null,null,null,null,null,null,null,"SKELLEFTEA",null,null,null,null,null,null,"SAN PEDRO"]
[null,null,null,null,null,null,null,"SKIEN",null,null,null,null,null,null,"SAN VICENTE"]
[null,null,null,null,null,null,null,"SOFIA",null,null,null,null,null,null,"SANTANDER"]
[null,null,null,null,null,null,null,"SONDERBORG",null,null,null,null,null,null,"SANTAREM"]
[null,null,null,null,null,null,null,"SOUBURG",null,null,null,null,null,null,"SANTIAGO"]
[null,null,null,null,null,null,null,"SOUTHAMPTON",null,null,null,null,null,null,"SANTO DOMINGO"]
[null,null,null,null,null,null,null,"SOYO",null,null,null,null,null,null,"SANTO TOMAS DE CASTILLA"]
[null,null,null,null,null,null,null,"SPLIT",null,null,null,null,null,null,"SANTOS"]
[null,null,null,null,null,null,null,"ST JOHN'S",null,null,null,null,null,null,"SAO LUIS"]
[null,null,null,null,null,null,null,"ST. CROIX",null,null,null,null,null,null,"SAO SEBASTIAO"]
[null,null,null,null,null,null,null,"ST. CROIX (SEA)",null,null,null,null,null,null,"SARROCH"]
[null,null,null,null,null,null,null,"ST. EUSTATIUS",null,null,null,null,null,null,"SASEBO"]
[null,null,null,null,null,null,null,"ST. JOHN",null,null,null,null,null,null,"SAUDA"]
[null,null,null,null,null,null,null,"ST. JOHN'S",null,null,null,null,null,null,"SAUDI ARABIA"]
[null,null,null,null,null,null,null,"ST. JOHNS NB.",null,null,null,null,null,null,"SAVANNAH"]
[null,null,null,null,null,null,null,"ST. JOHNS NEWFOUNDLA",null,null,null,null,null,null,"SAVONA"]
[null,null,null,null,null,null,null,"ST. KITTS",null,null,null,null,null,null,"SEATTLE"]
[null,null,null,null,null,null,null,"ST. LUCIA (SLU)",null,null,null,null,null,null,"SEKI SAKI"]
[null,null,null,null,null,null,null,"ST. MAARTEN",null,null,null,null,null,null,"SEMARANG"]
[null,null,null,null,null,null,null,"ST. NAZAIRE",null,null,null,null,null,null,"SENBOKU"]
[null,null,null,null,null,null,null,"ST. PETERSBURG",null,null,null,null,null,null,"SENDAI"]
[null,null,null,null,null,null,null,"ST. PIERRE",null,null,null,null,null,null,"SEPETIBA"]
[null,null,null,null,null,null,null,"ST. THOMAS",null,null,null,null,null,null,"SEPT ILES"]
[null,null,null,null,null,null,null,"ST. VINCENT",null,null,null,null,null,null,"SERIA"]
[null,null,null,null,null,null,null,"STANSTEAD",null,null,null,null,null,null,"SETE"]
[null,null,null,null,null,null,null,"STAVANGER",null,null,null,null,null,null,"SETUBAL"]
[null,null,null,null,null,null,null,"STEPHENVILLE",null,null,null,null,null,null,"SHANGHAI"]
[null,null,null,null,null,null,null,"STOCKHOLM",null,null,null,null,null,null,"SHANTOU"]
[null,null,null,null,null,null,null,"STOCKHOLM ARLANDA",null,null,null,null,null,null,"SHARJAH"]
[null,null,null,null,null,null,null,"STORNOWAY",null,null,null,null,null,null,"SHEERNESS"]
[null,null,null,null,null,null,null,"STRASBOURG",null,null,null,null,null,null,"SHEKOU"]
[null,null,null,null,null,null,null,"STUTTGART",null,null,null,null,null,null,"SHELL HAVEN"]
[null,null,null,null,null,null,null,"SULTAN ABDUL AZIZ",null,null,null,null,null,null,"SHENAO"]
[null,null,null,null,null,null,null,"SUNDSVALL",null,null,null,null,null,null,"SHENZHEN"]
[null,null,null,null,null,null,null,"SURABAYA",null,null,null,null,null,null,"SHIGEI"]
[null,null,null,null,null,null,null,"SURAT",null,null,null,null,null,null,"SHIMIZU"]
[null,null,null,null,null,null,null,"SURIGAO DEL SUR",null,null,null,null,null,null,"SHIMOTSU"]
[null,null,null,null,null,null,null,"SUVA",null,null,null,null,null,null,"SHIN KASADO"]
[null,null,null,null,null,null,null,"SYDNEY",null,null,null,null,null,null,"SHINGU"]
[null,null,null,null,null,null,null,"SYDNEY  NOVA SCOTIA",null,null,null,null,null,null,"SHUAIBA"]
[null,null,null,null,null,null,null,"SZCZECIN",null,null,null,null,null,null,"SHUIDONG"]
[null,null,null,null,null,null,null,"TACLOBAN",null,null,null,null,null,null,"SIKKA"]
[null,null,null,null,null,null,null,"TACNA",null,null,null,null,null,null,"SINES"]
[null,null,null,null,null,null,null,"TAICHUNG",null,null,null,null,null,null,"SINGAPORE (DRY DOCK)"]
[null,null,null,null,null,null,null,"TAINAN",null,null,null,null,null,null,"SINGAPORE OPL"]
[null,null,null,null,null,null,null,"TAIPEI",null,null,null,null,null,null,"SKAGEN"]
[null,null,null,null,null,null,null,"TAITUNG",null,null,null,null,null,null,"SNOHVIT"]
[null,null,null,null,null,null,null,"TAKAMATSU",null,null,null,null,null,null,"SODEGAURA"]
[null,null,null,null,null,null,null,"TALARA",null,null,null,null,null,null,"SODESHI"]
[null,null,null,null,null,null,null,"TALLINN",null,null,null,null,null,null,"SOGO PORT"]
[null,null,null,null,null,null,null,"TAMATAVE",null,null,null,null,null,null,"SOHAR"]
[null,null,null,null,null,null,null,"TAMPA",null,null,null,null,null,null,"SOMA"]
[null,null,null,null,null,null,null,"TAMPA. FLORIDA",null,null,null,null,null,null,"SONGXIA"]
[null,null,null,null,null,null,null,"TAMPERE",null,null,null,null,null,null,"SOUTH HOOK"]
[null,null,null,null,null,null,null,"TAMPICO",null,null,null,null,null,null,"SOUTH KOREA"]
[null,null,null,null,null,null,null,"TANGA",null,null,null,null,null,null,"SOUTH WORLD"]
[null,null,null,null,null,null,null,"TANGIER",null,null,null,null,null,null,"SOUTHAMPTON"]
[null,null,null,null,null,null,null,"TANGSHAN",null,null,null,null,null,null,"SOYO"]
[null,null,null,null,null,null,null,"TANJUNG PENANG",null,null,null,null,null,null,"SPRING BAY"]
[null,null,null,null,null,null,null,"TAPACHULA",null,null,null,null,null,null,"SRIRACHA"]
[null,null,null,null,null,null,null,"TARAKAN",null,null,null,null,null,null,"ST CROIX"]
[null,null,null,null,null,null,null,"TARANTO",null,null,null,null,null,null,"ST. EUSTATIUS"]
[null,null,null,null,null,null,null,"TARAWA",null,null,null,null,null,null,"ST.JOHNS"]
[null,null,null,null,null,null,null,"TASMANIA",null,null,null,null,null,null,"ST.NAZAIRE"]
[null,null,null,null,null,null,null,"TAURANGA",null,null,null,null,null,null,"STEPHENVILLE"]
[null,null,null,null,null,null,null,"TBILISI",null,null,null,null,null,null,"STOCKHOLM"]
[null,null,null,null,null,null,null,"TEESIDE",null,null,null,null,null,null,"STRAUMSVIK"]
[null,null,null,null,null,null,null,"TEESSIDE",null,null,null,null,null,null,"SUAPE"]
[null,null,null,null,null,null,null,"TEGEL",null,null,null,null,null,null,"SUBIC"]
[null,null,null,null,null,null,null,"TEGUCIGALPA",null,null,null,null,null,null,"SUDONG"]
[null,null,null,null,null,null,null,"TEHRAN",null,null,null,null,null,null,"SUEZ"]
[null,null,null,null,null,null,null,"TEL AVIV",null,null,null,null,null,null,"SULTAN QABOOS"]
[null,null,null,null,null,null,null,"TEMBAGAPURA",null,null,null,null,null,null,"SUMATRA"]
[null,null,null,null,null,null,null,"TENERIFE",null,null,null,null,null,null,"SUNGAI LINGGI"]
[null,null,null,null,null,null,null,"TENERIFE SUR",null,null,null,null,null,null,"SUNGAI UDANG"]
[null,null,null,null,null,null,null,"TENERIFFE",null,null,null,null,null,null,"SURABAYA"]
[null,null,null,null,null,null,null,"TERCEIRA",null,null,null,null,null,null,"SUVA"]
[null,null,null,null,null,null,null,"TERRACE",null,null,null,null,null,null,"SWEDEN"]
[null,null,null,null,null,null,null,"THESSALONIKI",null,null,null,null,null,null,"SWINOUJSCIE"]
[null,null,null,null,null,null,null,"THIRUVANANTHAPURAM",null,null,null,null,null,null,"SYDNEY"]
[null,null,null,null,null,null,null,"THUNDER BAY",null,null,null,null,null,null,"SZCZECIN"]
[null,null,null,null,null,null,null,"TIANJIN",null,null,null,null,null,null,"TABANGAO"]
[null,null,null,null,null,null,null,"TIJUANA",null,null,null,null,null,null,"TACHIBANA"]
[null,null,null,null,null,null,null,"TIRANA",null,null,null,null,null,null,"TACOMA"]
[null,null,null,null,null,null,null,"TIRUCHIRAPALLI",null,null,null,null,null,null,"TAEAN-GUN"]
[null,null,null,null,null,null,null,"TIRUCHIRAPALLY",null,null,null,null,null,null,"TAGONOURA"]
[null,null,null,null,null,null,null,"TIRUPATI",null,null,null,null,null,null,"TAHAROA"]
[null,null,null,null,null,null,null,"TIVAT",null,null,null,null,null,null,"TAICANG"]
[null,null,null,null,null,null,null,"TOBAGO",null,null,null,null,null,null,"TAICHUNG"]
[null,null,null,null,null,null,null,"TOKYO",null,null,null,null,null,null,"TAIPEI"]
[null,null,null,null,null,null,null,"TOKYO (HANEDA)",null,null,null,null,null,null,"TAIWAN"]
[null,null,null,null,null,null,null,"TOKYO (NARITA)",null,null,null,null,null,null,"TAIXING"]
[null,null,null,null,null,null,null,"TOMOGASHIMA",null,null,null,null,null,null,"TAKEHARA"]
[null,null,null,null,null,null,null,"TOMSK",null,null,null,null,null,null,"TAKORADI"]
[null,null,null,null,null,null,null,"TORONTO",null,null,null,null,null,null,"TALCAHUANO"]
[null,null,null,null,null,null,null,"TORTOLA",null,null,null,null,null,null,"TALLIN"]
[null,null,null,null,null,null,null,"TOULOUSE",null,null,null,null,null,null,"TAMATAVE"]
[null,null,null,null,null,null,null,"TOWNSVILLE",null,null,null,null,null,null,"TAMPA"]
[null,null,null,null,null,null,null,"TOYAMA",null,null,null,null,null,null,"TAMPICO"]
[null,null,null,null,null,null,null,"TRABZON",null,null,null,null,null,null,"TAN CANG"]
[null,null,null,null,null,null,null,"TRELEW",null,null,null,null,null,null,"TANGGUH"]
[null,null,null,null,null,null,null,"TRIESTE",null,null,null,null,null,null,"TANGSHAN"]
[null,null,null,null,null,null,null,"TRIPOLI",null,null,null,null,null,null,"TANJUNG BARA"]
[null,null,null,null,null,null,null,"TRIVANDRUM",null,null,null,null,null,null,"TANJUNG BIN"]
[null,null,null,null,null,null,null,"TROMSO",null,null,null,null,null,null,"TANJUNG PELEPAS"]
[null,null,null,null,null,null,null,"TROMSOE, NORWAY",null,null,null,null,null,null,"TANJUNG PRIOK"]
[null,null,null,null,null,null,null,"TRONDHEIM",null,null,null,null,null,null,"TANJUNG UBAN"]
[null,null,null,null,null,null,null,"TRUJILLO",null,null,null,null,null,null,"TANUJANG BARA"]
[null,null,null,null,null,null,null,"TUGUEGARAO",null,null,null,null,null,null,"TARAHAN"]
[null,null,null,null,null,null,null,"TULCEA",null,null,null,null,null,null,"TARANTO"]
[null,null,null,null,null,null,null,"TULEAR",null,null,null,null,null,null,"TARRAGONA"]
[null,null,null,null,null,null,null,"TUMBES",null,null,null,null,null,null,"TATEYAMA"]
[null,null,null,null,null,null,null,"TUNIS",null,null,null,null,null,null,"TAURANGA"]
[null,null,null,null,null,null,null,"TURKU",null,null,null,null,null,null,"TEES"]
[null,null,null,null,null,null,null,"TUTICORIN",null,null,null,null,null,null,"TEKIRDAG"]
[null,null,null,null,null,null,null,"UDAIPUR",null,null,null,null,null,null,"TELUK SEMANGKA"]
[null,null,null,null,null,null,null,"UJUNG PANDANG",null,null,null,null,null,null,"TENERIFE"]
[null,null,null,null,null,null,null,"ULSAN",null,null,null,null,null,null,"TERMINAL OFFICE"]
[null,null,null,null,null,null,null,"UNKNOWN",null,null,null,null,null,null,"TERNEUZEN"]
[null,null,null,null,null,null,null,"UNKNOWN",null,null,null,null,null,null,"TEXAS CITY"]
[null,null,null,null,null,null,null,"UNKNOWN/NO AIRPORT",null,null,null,null,null,null,"THAILAND"]
[null,null,null,null,null,null,null,"USHUAIA",null,null,null,null,null,null,"TIANJIN"]
[null,null,null,null,null,null,null,"VAASA",null,null,null,null,null,null,"TIESHAN"]
[null,null,null,null,null,null,null,"VADODARA",null,null,null,null,null,null,"TILBURY"]
[null,null,null,null,null,null,null,"VAGAR",null,null,null,null,null,null,"TIMARU"]
[null,null,null,null,null,null,null,"VALENCIA",null,null,null,null,null,null,"TOBATA"]
[null,null,null,null,null,null,null,"VALENCIA- VENEZUELA",null,null,null,null,null,null,"TOCOPILLA"]
[null,null,null,null,null,null,null,"VALLENAR",null,null,null,null,null,null,"TOKACHI"]
[null,null,null,null,null,null,null,"VANCOUVER",null,null,null,null,null,null,"TOKAI"]
[null,null,null,null,null,null,null,"VARANASI",null,null,null,null,null,null,"TOKUYAMA"]
[null,null,null,null,null,null,null,"VARNA",null,null,null,null,null,null,"TOKYO"]
[null,null,null,null,null,null,null,"VENICE",null,null,null,null,null,null,"TOLO HARBOUR"]
[null,null,null,null,null,null,null,"VERA CRUZ",null,null,null,null,null,null,"TOMAKOMAI"]
[null,null,null,null,null,null,null,"VERONA",null,null,null,null,null,null,"TOMOGASHIMA"]
[null,null,null,null,null,null,null,"VICTORIA",null,null,null,null,null,null,"TONDA"]
[null,null,null,null,null,null,null,"VICTORIA, B.C.",null,null,null,null,null,null,"TONGYEONG"]
[null,null,null,null,null,null,null,"VIENNA",null,null,null,null,null,null,"TOPOLOBAMPO"]
[null,null,null,null,null,null,null,"VIGO",null,null,null,null,null,null,"TOROS"]
[null,null,null,null,null,null,null,"VIJAYAWADA",null,null,null,null,null,null,"TOWNSVILLE"]
[null,null,null,null,null,null,null,"VILNIUS",null,null,null,null,null,null,"TOYAMA"]
[null,null,null,null,null,null,null,"VISAKHAPATNAM",null,null,null,null,null,null,"TOYOHASHI"]
[null,null,null,null,null,null,null,"VISHAKHAPATNAM",null,null,null,null,null,null,"TRAMANDAI"]
[null,null,null,null,null,null,null,"VITORIA",null,null,null,null,null,null,"TRANMERE"]
[null,null,null,null,null,null,null,"VITTORIA",null,null,null,null,null,null,"TRIESTE"]
[null,null,null,null,null,null,null,"VLADIVOSTOK",null,null,null,null,null,null,"TRINIDAD AND TOBAGO"]
[null,null,null,null,null,null,null,"VOLGOGRAD",null,null,null,null,null,null,"TROMBETAS"]
[null,null,null,null,null,null,null,"VORONEZH",null,null,null,null,null,null,"TSUKUMI"]
[null,null,null,null,null,null,null,"WALVIS BAY",null,null,null,null,null,null,"TSUNEISHI DOCKYARD"]
[null,null,null,null,null,null,null,"WARRI",null,null,null,null,null,null,"TSUNEISHI DOCKYARD CHINA"]
[null,null,null,null,null,null,null,"WARSAW",null,null,null,null,null,null,"TSUNEISHI DOCKYARD JAPAN"]
[null,null,null,null,null,null,null,"WASHINGTON",null,null,null,null,null,null,"TSURUGA"]
[null,null,null,null,null,null,null,"WASHINGTON DC",null,null,null,null,null,null,"TUBARAO"]
[null,null,null,null,null,null,null,"WASHINGTON DULLES IN",null,null,null,null,null,null,"TUNESHI DOCKYARD"]
[null,null,null,null,null,null,null,"WELLINGTON",null,null,null,null,null,null,"TUNIS"]
[null,null,null,null,null,null,null,"WENZHOU",null,null,null,null,null,null,"TUTICORIN"]
[null,null,null,null,null,null,null,"WEST PALM BEACH",null,null,null,null,null,null,"TUXPAN"]
[null,null,null,null,null,null,null,"WEWAK",null,null,null,null,null,null,"TUZLA"]
[null,null,null,null,null,null,null,"WHANGAREI",null,null,null,null,null,null,"TYNE"]
[null,null,null,null,null,null,null,"WHYALLA",null,null,null,null,null,null,"UBE"]
[null,null,null,null,null,null,null,"WICK",null,null,null,null,null,null,"ULSAN"]
[null,null,null,null,null,null,null,"WILMINGTON NC",null,null,null,null,null,null,"URAGA"]
[null,null,null,null,null,null,null,"WINDHOEK",null,null,null,null,null,null,"UST LUGA"]
[null,null,null,null,null,null,null,"WINDSOR  ONT.",null,null,null,null,null,null,"VADINAR"]
[null,null,null,null,null,null,null,"WITHNELL BAY",null,null,null,null,null,null,"VALENCIA"]
[null,null,null,null,null,null,null,"WROCLAW",null,null,null,null,null,null,"VALPARAISO"]
[null,null,null,null,null,null,null,"WYNYARD",null,null,null,null,null,null,"VANCOUVER"]
[null,null,null,null,null,null,null,"XIAMEN",null,null,null,null,null,null,"VANINO"]
[null,null,null,null,null,null,null,"YAMAGATA",null,null,null,null,null,null,"VARANASI"]
[null,null,null,null,null,null,null,"YANBU",null,null,null,null,null,null,"VENICE"]
[null,null,null,null,null,null,null,"YANGON",null,null,null,null,null,null,"VERACRUZ"]
[null,null,null,null,null,null,null,"YANTAI",null,null,null,null,null,null,"VIGO"]
[null,null,null,null,null,null,null,"YAP ISLAND",null,null,null,null,null,null,"VILLANUEVA"]
[null,null,null,null,null,null,null,"YEOSU",null,null,null,null,null,null,"VINASHIN"]
[null,null,null,null,null,null,null,"YOGYAKARTA",null,null,null,null,null,null,"VITORIA"]
[null,null,null,null,null,null,null,"YOSU",null,null,null,null,null,null,"VIZAG"]
[null,null,null,null,null,null,null,"ZADAR",null,null,null,null,null,null,"VLADIVOSTOK"]
[null,null,null,null,null,null,null,"ZAGREB",null,null,null,null,null,null,"VLISSINGEN"]
[null,null,null,null,null,null,null,"ZAHEDAN",null,null,null,null,null,null,"VUDA"]
[null,null,null,null,null,null,null,"ZAMBALES",null,null,null,null,null,null,"VUNG TAU"]
[null,null,null,null,null,null,null,"ZAMBOANGA",null,null,null,null,null,null,"WAKAYAMA"]
[null,null,null,null,null,null,null,"ZANZIBAR",null,null,null,null,null,null,"WALVIS BAY"]
[null,null,null,null,null,null,null,"ZAPOROZHYE",null,null,null,null,null,null,"WASHINGTON DC"]
[null,null,null,null,null,null,null,"ZHUHAI",null,null,null,null,null,null,"WEIPA"]
[null,null,null,null,null,null,null,"ZURICH",null,null,null,null,null,null,"WENZHOU"]
[null,null,null,null,null,null,null,null,null,null,null,null,null,null,"WHANGAREI"]
[null,null,null,null,null,null,null,null,null,null,null,null,null,null,"WILHELMSHAVEN"]
[null,null,null,null,null,null,null,null,null,null,null,null,null,null,"WILMINGTON"]
[null,null,null,null,null,null,null,null,null,null,null,null,null,null,"WITHNELL BAY"]
[null,null,null,null,null,null,null,null,null,null,null,null,null,null,"XIAMEN"]
[null,null,null,null,null,null,null,null,null,null,null,null,null,null,"XINGANG"]
[null,null,null,null,null,null,null,null,null,null,null,null,null,null,"YABUCOA"]
[null,null,null,null,null,null,null,null,null,null,null,null,null,null,"YANAI"]
[null,null,null,null,null,null,null,null,null,null,null,null,null,null,"YANBU"]
[null,null,null,null,null,null,null,null,null,null,null,null,null,null,"YANCHENG"]
[null,null,null,null,null,null,null,null,null,null,null,null,null,null,"YANGON"]
[null,null,null,null,null,null,null,null,null,null,null,null,null,null,"YANGPU"]
[null,null,null,null,null,null,null,null,null,null,null,null,null,null,"YANGSHAN"]
[null,null,null,null,null,null,null,null,null,null,null,null,null,null,"YANGZHOU"]
[null,null,null,null,null,null,null,null,null,null,null,null,null,null,"YANTAI"]
[null,null,null,null,null,null,null,null,null,null,null,null,null,null,"YARIMCA"]
[null,null,null,null,null,null,null,null,null,null,null,null,null,null,"YASHINOURA"]
[null,null,null,null,null,null,null,null,null,null,null,null,null,null,"YEOSU"]
[null,null,null,null,null,null,null,null,null,null,null,null,null,null,"YINGKOU"]
[null,null,null,null,null,null,null,null,null,null,null,null,null,null,"YOKKAICHI"]
[null,null,null,null,null,null,null,null,null,null,null,null,null,null,"YOKOHAMA"]
[null,null,null,null,null,null,null,null,null,null,null,null,null,null,"YOKOSUKA"]
[null,null,null,null,null,null,null,null,null,null,null,null,null,null,"YORKTOWN"]
[null,null,null,null,null,null,null,null,null,null,null,null,null,null,"YOSHINOURA"]
[null,null,null,null,null,null,null,null,null,null,null,null,null,null,"YUNG AN"]
[null,null,null,null,null,null,null,null,null,null,null,null,null,null,"YURA DOCK"]
[null,null,null,null,null,null,null,null,null,null,null,null,null,null,"ZADAR"]
[null,null,null,null,null,null,null,null,null,null,null,null,null,null,"ZAGREB"]
[null,null,null,null,null,null,null,null,null,null,null,null,null,null,"ZARATE"]
[null,null,null,null,null,null,null,null,null,null,null,null,null,null,"ZEEBRUGGE"]
[null,null,null,null,null,null,null,null,null,null,null,null,null,null,"ZHANGJIAGANG"]
[null,null,null,null,null,null,null,null,null,null,null,null,null,null,"ZHANJIANG"]
[null,null,null,null,null,null,null,null,null,null,null,null,null,null,"ZHAPU"]
[null,null,null,null,null,null,null,null,null,null,null,null,null,null,"ZHENJIANG"]
[null,null,null,null,null,null,null,null,null,null,null,null,null,null,"ZHOUSHAN"]
[null,null,null,null,null,null,null,null,null,null,null,null,null,null,"ZHOUSHAN (DRY DOCK)"]
[null,null,null,null,null,null,null,null,null,null,null,null,null,null,"ZHUHAI"]
[null,null,null,null,null,null,null,null,null,null,null,null,null,null,"ZONA COMUN"]
[null,null,null,null,null,null,null,null,null,null,null,null,null,null,"ZURICH"]
[null,null,null,null,null,null,null,null,null,null,null,null,null,null,"UNKNOWN"]

{"sheet":"Sheet2","index":2,"n_rows":0,"n_cols":0,"rows_kept":0,"cut":false,"hidden":false,"merged":[]}